Cogmind - Beta 16.1 @@@ ROGUE MODE // 2026.04.13 @ 10:07:29 Player: Dosh Result: Escaped! Performance ------------- Evolutions (9) 4500 Regions Visited (24) 4800 Robots Destroyed (298) 1490 Value Destroyed (16159) 16159 Prototype IDs (46) 920 Alien Tech Used (0) 0 Bonus (26086) 26086 TOTAL SCORE: 53955 Bonus ------- High Alert Combat Kills 972 Follower Combat Kills 13673 Hunted by Unchained 500 Entered Garrisons 2000 Used RIF Installer 6000 Win 3000 Friendly Fire -59 Cogmind --------- Core Integrity 1417/1600 Matter 138/300 Energy 455/460 System Corruption 18% Temperature Cool (7) Movement Rolling (130) Ox2 Location To Epsilon Eridani Parts ------- > --- POWER (4) -------- Light Quantum Reactor Light Quantum Reactor Light Quantum Reactor Light Quantum Reactor > --- PROPULSION (5) --- Centrium Wheel Centrium Wheel Centrium Wheel Centrium Wheel High-density Centrium Wheel > --- UTILITY (10) ----- Advanced Cooling System Huge Storage Unit Centrium Heavy Armor Plating Advanced Remote Force Field Advanced System Shield Relay Coupler [Swarmer] (31) Relay Coupler [Grunt] (23) Relay Coupler [Sentry] (11) > --- WEAPON (6) ------- Enhanced Nova Cannon 1B-0RG's Assimilator > --- INVENTORY (25) --- Biometal Heavy Treads Armored Huge Wheel High-capacity Matter Pod (0) High-capacity Matter Pod (0) Experimental Optical Array Graphene Brace Improved Remote Force Field Relay Coupler [NC] (51) Relay Coupler [Swarmer] (38) Relay Coupler [Grunt] (45) Relay Coupler [Grunt] (47) Relay Coupler [Grunt] (36) Relay Coupler [Proto] (21) Advanced Drone Bay (2/2) Compact HERF Cannon Enhanced Nova Cannon Advanced Remote Datajack Advanced Remote Datajack Centrium Greatsword Peak State ------------ > --- POWER ------------ Light Quantum Reactor Light Quantum Reactor Light Quantum Reactor Light Quantum Reactor > --- PROPULSION ------- Centrium Wheel Centrium Wheel Centrium Wheel Centrium Wheel High-density Centrium Wheel > --- UTILITY ---------- Advanced Cooling System Huge Storage Unit Centrium Heavy Armor Plating Advanced Remote Force Field Advanced System Shield Relay Coupler [NC] Relay Coupler [Swarmer] Relay Coupler [Grunt] Relay Coupler [Sentry] > --- WEAPON ----------- Enhanced Nova Cannon 1B-0RG's Assimilator > --- INVENTORY -------- Light Quantum Reactor Biometal Heavy Treads Armored Huge Wheel High-capacity Matter Pod High-capacity Matter Pod Experimental Optical Array Graphene Brace Improved Remote Force Field Relay Coupler [NC] Relay Coupler [Swarmer] Relay Coupler [Grunt] Relay Coupler [Grunt] Relay Coupler [Grunt] Relay Coupler [Proto] Advanced Drone Bay Compact HERF Cannon Enhanced Nova Cannon Advanced Remote Datajack Advanced Remote Datajack Centrium Greatsword [Rating: 211] Favorites ----------- Power Light Quantum Reactor Engine Heavy Deuterium Engine Power Core Nuclear Core Reactor Light Quantum Reactor Propulsion Armored Huge Wheel Treads Light Treads Leg Cargo Legs Wheel Armored Huge Wheel Utility Huge Storage Unit Device Improved Heat Sink Storage Huge Storage Unit Processor Targeting Computer Hackware Relay Coupler [Grunt] Protection Powered Armor Weapon 1B-0RG's Assimilator Energy Gun Thermic Laser Energy Cannon Enhanced Nova Cannon Ballistic Gun Enhanced Autogun Ballistic Cannon Battle Cannon Launcher Heavy Rocket Launcher Special Weapon Remote Datajack Slashing Weapon Makeshift Axe Piercing Weapon Enhanced Force Lance Special Melee Weapon 1B-0RG's Assimilator Build | -11 -10 -10 -8 -8 -8 -8 -8 -8 -7 -7 -7 -7 -6 -6 -5 -5 -5 -5 -4 -4 -3 -3 -2 -1 ------- Run | Yrd Mat Sub Mat Gar Mat Gar Mat Gar Fac Gar Fac Gar Fac Gar Fac Gar Fac Gar Fac Gar Res Gar Res Acc Slots Evolved 18 | . . . 4 . . . . . 2 . . . 2 . 2 . . . 2 . 2 . 2 2 Power 3 | . . . . . . . . . . . . . . . 1 . . . 1 . . . 1 . Propulsion 3 | . . . . . . . . . . . . . 1 . . . . . . . 1 . . 1 Utility 8 | . . . 2 . . . . . . . . . 1 . 1 . . . 1 . 1 . 1 1 Weapon 4 | . . . 2 . . . . . 2 . . . . . . . . . . . . . . . Parts Attached 243 | 6 5 13 40 4 9 4 13 6 6 11 5 3 9 3 7 10 5 11 10 12 8 20 11 12 Power 39 | 1 . 3 3 . 2 . 2 1 1 . . 1 . 1 3 1 . 2 2 5 1 5 4 1 Engine 10 | 1 . 3 . . . . 1 1 1 . . 1 . 1 1 . . . . . . . . . Core 13 | . . . 3 . 2 . 1 . . . . . . . 2 1 . 2 . . . 2 . . Reactor 16 | . . . . . . . . . . . . . . . . . . . 2 5 1 3 4 1 Propulsion 42 | 2 . 3 6 . . 1 1 . . 2 . . 1 . 1 2 1 2 4 1 4 5 1 5 Treads 14 | 2 . 3 5 . . . . . . . . . . . . . . 1 . . 1 2 . . Leg 1 | . . . 1 . . . . . . . . . . . . . . . . . . . . . Wheel 27 | . . . . . . 1 1 . . 2 . . 1 . 1 2 1 1 4 1 3 3 1 5 Hover . | . . . . . . . . . . . . . . . . . . . . . . . . . Flight . | . . . . . . . . . . . . . . . . . . . . . . . . . Utility 93 | 1 3 1 11 1 2 3 3 4 4 7 3 . 5 2 3 4 2 6 4 3 2 9 6 4 Device 17 | . 1 . 3 . . 1 1 2 . 1 . . 1 . . . 1 1 . 2 . 1 2 . Storage 5 | 1 2 . . . . . . . 1 . . . . . . . . 1 . . . . . . Processor 1 | . . . 1 . . . . . . . . . . . . . . . . . . . . . Hackware 50 | . . . 1 . 1 1 2 2 3 5 3 . 3 1 2 4 1 4 4 . 2 5 3 3 Protection 20 | . . 1 6 1 1 1 . . . 1 . . 1 1 1 . . . . 1 . 3 1 1 Artifact . | . . . . . . . . . . . . . . . . . . . . . . . . . Weapon 69 | 2 2 6 20 3 5 . 7 1 1 2 2 2 3 . . 3 2 1 . 3 1 1 . 2 Energy Gun 8 | . . . 6 . . . . . . 2 . . . . . . . . . . . . . . Energy Cannon 12 | . . 2 1 1 . . . . . . . . 1 . . 2 1 . . 1 . 1 . 2 Ballistic Gun 27 | 2 . . 10 1 4 . 6 1 1 . 2 . . . . . . . . . . . . . Ballistic Cannon 8 | . 2 2 3 . 1 . . . . . . . . . . . . . . . . . . . Launcher 3 | . . 1 . 1 . . . . . . . . . . . . . . . 1 . . . . Special Weapon 7 | . . . . . . . 1 . . . . 1 1 . . . 1 1 . 1 1 . . . Impact Weapon . | . . . . . . . . . . . . . . . . . . . . . . . . . Slashing Weapon 2 | . . 1 . . . . . . . . . . 1 . . . . . . . . . . . Piercing Weapon 1 | . . . . . . . . . . . . . . . . 1 . . . . . . . . Special Melee Weapon 1 | . . . . . . . . . . . . 1 . . . . . . . . . . . . Unidentified Prototypes 6 | . . . 4 . . . . . . . . 1 . . 1 . . . . . . . . . Corrupted Parts 3 | . . . . . . . . 1 . . . . . . . . . 1 . . . . . 1 System Corruption 15 | . . . . . . . . 3 . . . . . . . . . 2 . . . . . 10 Parts Lost 57 | . . 4 7 1 . 2 . 2 . 4 . 5 1 2 1 2 . 3 5 2 2 8 3 3 Power 15 | . . 2 1 . . . . . . . . 1 . 1 . 1 . . 2 . . 5 1 1 Propulsion 13 | . . 2 . . . . . . . . . 1 . . . 1 . 2 2 2 . 2 1 . Utility 18 | . . . 3 1 . 2 . 2 . . . . . 1 1 . . 1 1 . 2 1 1 2 Weapon 11 | . . . 3 . . . . . . 4 . 3 1 . . . . . . . . . . . Highest Loss Streak 4 | . . 1 3 1 . 1 . 1 . 2 . 1 1 1 1 1 . 1 4 1 1 3 2 1 To Critical Strikes . | . . . . . . . . . . . . . . . . . . . . . . . . . Average Backups 19 | . 7 14 17 18 18 19 19 19 18 19 18 20 21 23 23 24 23 23 22 24 20 22 22 20 Power 1 | . . . 1 2 1 1 1 1 2 1 1 . 1 2 1 1 1 2 1 1 2 . 1 . Propulsion 1 | . 1 2 3 2 2 1 . 1 1 3 2 1 1 1 1 1 1 . . 1 1 3 2 1 Utility 10 | . 3 5 5 6 7 10 10 9 9 10 11 12 12 15 15 16 16 15 14 14 12 14 16 12 Weapon 4 | . 1 5 6 7 6 5 5 5 3 2 2 3 5 4 5 4 4 4 4 4 3 3 3 3 Tool/Special . | . . . . . . . . . . . . . . . . . . . . . . . . . Unused Backups 55 | . 1 3 3 1 3 4 1 1 1 1 2 4 . 7 1 5 . 1 . 4 . . 1 11 Power 3 | . . . . 1 . . . . . 1 . . . 1 . . . . . . . . . . Propulsion 5 | . . . 2 . . . . . 1 . 1 . . . . . . 1 . . . . . . Utility 35 | . 1 1 . . 1 4 . 1 . . 1 2 . 5 1 4 . . . 4 . . 1 9 Weapon 9 | . . 2 1 . . . 1 . . . . 2 . 1 . 1 . . . . . . . 1 Tool/Special 3 | . . . . . 2 . . . . . . . . . . . . . . . . . . 1 Average Slot Usage (%) 80 | . 89 99 86 90 90 90 89 88 91 90 92 71 65 65 67 60 60 62 72 71 71 65 72 76 Engine 3 | . 14 13 1 . . . 5 9 7 7 7 6 6 5 2 . . . . . . . . . Core 3 | . . . 6 8 8 8 3 . . . . . . . 8 10 11 11 9 1 . 1 1 . Reactor 3 | . . . . . . . . . . . . . . . . . . . 4 13 14 11 14 16 Treads 4 | . 27 27 5 . . . . . . . . . . . . . . . 2 . 2 4 . . Leg 1 | . . . 5 8 8 2 . . . . . . . . . . . . . . . . . . Wheel 6 | . . . . . . 6 9 9 7 7 7 6 13 13 11 7 8 5 7 12 12 7 12 18 Device 6 | . . 6 8 16 15 11 4 4 3 2 . 6 3 6 4 . 1 3 4 5 8 5 4 6 Storage 7 | . 18 14 7 8 8 8 9 9 7 7 7 7 6 6 5 5 5 5 5 5 4 4 4 4 Hackware 11 | . . . 3 . 6 8 13 9 18 16 20 9 18 14 14 16 14 18 23 17 11 14 20 18 Protection 6 | . . 7 13 15 9 8 8 11 . 3 2 4 3 4 4 5 5 3 3 3 5 4 4 4 Energy Gun 1 | . . . 3 . . . . . . 4 15 5 . . . . . . . . . . . . Energy Cannon 1 | . . 11 . . . . . . . . . 3 2 . . . . . . 2 1 2 1 2 Ballistic Gun 11 | . 20 . 22 29 31 29 28 32 38 30 15 5 . . . . . . . . . . . . Ballistic Cannon 2 | . 7 15 3 . . . . . . . . . . . . . . . . . . . . . Special Weapon 1 | . . . . . . . 5 . 1 4 7 3 1 1 1 . 2 2 2 . 2 1 2 1 Slashing Weapon 1 | . . . 2 2 1 5 2 2 4 3 7 3 2 4 3 3 . . . . . . . . Special Melee Weapon 2 | . . . . . . . . . . . . 4 6 6 5 5 5 5 5 5 4 4 4 4 Peak Build Rating 211 | 6 8 26 62 64 62 62 51 53 60 65 64 106 113 111 122 123 129 129 139 144 167 162 189 211 Average Rating 88 | 4 6 15 53 59 61 54 49 50 58 61 61 87 107 109 118 118 124 123 134 138 157 151 169 203 On Entrance 85 | . 6 8 24 58 61 62 51 50 50 60 64 63 106 109 110 120 123 129 124 130 144 149 144 189 Avg Prop Armor Cover (%) 6 | . 9 9 . . . . . . . . . . . . . . . 6 5 . 7 6 . . Naked Turns . | . . . . . . . . . . . . . . . . . . . . . . . . . Heaviest Build 251 | 13 96 95 128 131 126 127 127 132 119 121 118 165 166 164 191 192 205 205 201 227 236 237 251 251 Greatest Support 140 | 40 40 40 55 55 55 55 28 28 28 28 28 28 40 40 40 40 38 38 38 36 75 140 58 84 Greatest Overweight (x) 68 | 4 2 2 2 2 2 4 4 4 4 4 4 5 4 4 4 6 6 6 19 10 11 68 6 3 Average Overweight (x) 3 | . . . 1 2 2 3 3 3 3 3 3 4 3 3 4 5 5 5 5 6 6 3 4 2 Largest Inventory Capacity 25 | 8 25 25 25 25 25 25 25 25 25 25 25 25 25 25 25 25 25 25 25 25 25 25 25 25 Average Capacity 23 | 7 15 17 25 25 25 25 25 25 25 25 25 25 25 25 25 25 25 25 25 25 25 25 25 25 Most Carried 25 | . 11 23 25 25 25 25 25 25 25 25 25 25 25 25 25 25 25 25 25 25 24 25 25 25 Average Carried 22 | . 7 16 23 24 24 24 24 24 23 24 23 23 22 24 24 24 24 23 23 24 20 24 24 23 Final Capacity 25 | 8 15 25 25 25 25 25 25 25 25 25 25 25 25 25 25 25 25 25 25 25 25 25 25 25 Final Carried 25 | . 10 22 23 25 25 25 24 25 25 25 22 24 25 25 25 25 24 24 22 25 20 25 24 23 Class Distribution -------------------- 46% | Botlord-Mutant 15% | Tank 14% | Mutant 9% | Bothacker-Tank 4% | Botlord-Executioner 3% | Scavenger-Tank 3% | Bothacker-Executioner Dominant Class ---------------- Mutant | -10/Materials Mutant | -10/Subcaves Tank | -8/Materials Tank | -8/Garrison Tank | -8/Materials Bothacker-Tank | -8/Garrison Bothacker-Tank | -8/Materials Bothacker-Tank | -8/Garrison Bothacker-Executioner | -7/Factory Botlord-Executioner | -7/Garrison Botlord-Executioner | -7/Factory Botlord-Mutant | -7/Garrison Botlord-Mutant | -6/Factory Botlord-Mutant | -6/Garrison Botlord-Mutant | -5/Factory Botlord-Mutant | -5/Garrison Botlord-Mutant | -5/Factory Botlord-Mutant | -5/Garrison Botlord-Mutant | -4/Factory Botlord-Mutant | -4/Garrison Botlord-Mutant | -3/Research Botlord-Mutant | -3/Garrison Botlord-Mutant | -2/Research Botlord-Mutant | -1/Access Resources | -11 -10 -10 -8 -8 -8 -8 -8 -8 -7 -7 -7 -7 -6 -6 -5 -5 -5 -5 -4 -4 -3 -3 -2 -1 ----------- Run | Yrd Mat Sub Mat Gar Mat Gar Mat Gar Fac Gar Fac Gar Fac Gar Fac Gar Fac Gar Fac Gar Res Gar Res Acc Matter Collected 26158 | 251 284 475 1493 472 1132 1272 400 1288 138 1190 191 749 1640 1225 1031 1091 336 585 1390 2767 1057 2299 2095 1307 Remotely . | . . . . . . . . . . . . . . . . . . . . . . . . . Salvage Created 12878 | . 636 527 1948 519 1623 1189 280 859 111 1359 132 1043 373 64 174 429 38 27 127 185 191 411 242 391 Parts 694 | . 45 43 104 37 76 78 11 68 4 54 8 37 24 2 8 17 2 2 12 12 14 8 12 16 Haulers Intercepted 16 | . 2 . 6 . 5 . 2 . . . . . 1 . . . . . . . . . . . Recyclers Shooed 10 | . 2 . 3 . . . 1 . . . . . 2 . . . . . . . . . 1 1 Parts Field Recycled . | . . . . . . . . . . . . . . . . . . . . . . . . . Retrieved Matter . | . . . . . . . . . . . . . . . . . . . . . . . . . Parts Self-Destructed 3 | . . 3 . . . . . . . . . . . . . . . . . . . . . . Prevented . | . . . . . . . . . . . . . . . . . . . . . . . . . Parts Restored . | . . . . . . . . . . . . . . . . . . . . . . . . . Kills | -11 -10 -10 -8 -8 -8 -8 -8 -8 -7 -7 -7 -7 -6 -6 -5 -5 -5 -5 -4 -4 -3 -3 -2 -1 ------- Run | Yrd Mat Sub Mat Gar Mat Gar Mat Gar Fac Gar Fac Gar Fac Gar Fac Gar Fac Gar Fac Gar Res Gar Res Acc Combat Hostiles Destroyed 229 | . 12 20 34 23 26 30 3 23 1 18 2 20 2 1 . 1 . 1 . 7 2 . 1 2 Melee 5 | . . . 5 . . . . . . . . . . . . . . . . . . . . . Guns 156 | . 12 . 25 9 26 29 2 23 1 18 2 9 . . . . . . . . . . . . Cannons 30 | . . 14 4 . . . . . . . . . 2 1 . 1 . 1 . 2 2 . 1 2 AOE 37 | . . 5 . 14 . 1 1 . . . . 11 . . . . . . . 5 . . . . Classes Destroyed 19 | . 7 4 4 . 2 . . 1 . . . . . . . . . . . . . . 1 . Worker 16 | . 1 . 4 . 1 . 1 . . . 1 . 1 . 1 . . . 1 . 4 . 1 . Builder 11 | . . . 1 . . . . . . . 1 . 4 . . . . . 4 . 1 . . . Tunneler 1 | . . . . . . . . . . . . . . . . . . . . . . . 1 . Hauler 17 | . 2 . 6 . 5 . 2 . . . . . 2 . . . . . . . . . . . Recycler 6 | . 1 . . . . . . . 1 . . . . . 1 . . . . . . . 1 2 Mechanic 1 | . . . . . 1 . . . . . . . . . . . . . . . . . . . Operator 4 | . 1 . 1 . 1 . 1 . . . . . . . . . . . . . . . . . Turret 2 | . . 2 . . . . . . . . . . . . . . . . . . . . . . Watcher 9 | . 2 . 2 . 2 . . . . 1 . 1 . . . . 1 . . . . . . . Swarmer 69 | . 2 4 3 14 3 8 . 6 . 2 . 17 2 . . . . 1 . 5 1 . . 1 Cutter 3 | . . . . . . . . 3 . . . . . . . . . . . . . . . . Grunt 77 | . 10 . 18 6 14 11 2 1 1 9 1 1 . 1 . . . . . 1 . . . 1 Brawler 5 | . . . 2 . . 2 . . . 1 . . . . . . . . . . . . . . Sentry 29 | . . 1 8 2 7 5 1 3 . 2 . . . . . . . . . . . . . . Specialist 3 | . . . 2 . . . . . . . . 1 . . . . . . . . . . . . Hunter 9 | . . . 1 1 1 2 . 1 . 1 1 . . . . 1 . . . . . . . . Programmer 21 | . . . . . 1 2 . 9 . 3 . 2 . . . . . . . 2 1 . 1 . Artisan 1 | . . 1 . . . . . . . . . . . . . . . . . . . . . . Subdweller 15 | . . 15 . . . . . . . . . . . . . . . . . . . . . . Best Kill Streak 17 | . 2 6 9 17 6 6 2 10 1 8 2 10 3 1 1 1 1 1 3 3 5 . 1 2 Combat Bots Only 17 | . 2 4 8 17 5 6 1 10 1 8 1 10 1 1 . 1 . 1 . 3 1 . 1 1 Max Kills in Single Turn 7 | . 1 2 2 7 2 2 1 2 1 2 1 2 1 1 1 1 1 1 1 2 1 . 1 1 Gunslinging 1 | . . . . . . 1 . 1 . 1 . 1 . . . . . . . . . . . . Exploded 7 | . . 1 . 7 . 1 1 . . . . 2 . . . . . . . 2 . . . . Melee 1 | . . . 1 . . . . . . . . . . . . . . . . . . . . . Uniques/NPCs Destroyed . | . . . . . . . . . . . . . . . . . . . . . . . . . Combat | -11 -10 -10 -8 -8 -8 -8 -8 -8 -7 -7 -7 -7 -6 -6 -5 -5 -5 -5 -4 -4 -3 -3 -2 -1 -------- Run | Yrd Mat Sub Mat Gar Mat Gar Mat Gar Fac Gar Fac Gar Fac Gar Fac Gar Fac Gar Fac Gar Res Gar Res Acc Hostile Shots Fired 1777 | . 52 64 222 57 91 118 10 81 23 127 35 84 45 21 20 22 1 45 64 38 98 176 122 161 Missed 497 | . 16 21 57 20 25 31 3 20 8 49 11 25 14 6 6 4 1 10 31 6 28 41 23 41 Hits 1280 | . 36 43 165 37 66 87 7 61 15 78 24 59 31 15 14 18 . 35 33 32 70 135 99 120 Melee 14 | . . . 2 . . 1 . 3 . . . . . 1 . . . 2 1 . . 4 . . Projectile 1266 | . 36 43 163 37 66 86 7 58 15 78 24 59 31 14 14 18 . 33 32 32 70 131 99 120 AOE 27 | . . 4 1 . . . . 2 . . . 1 . 4 1 3 2 . 5 2 1 1 . . Critical Strikes 65 | . . . 7 1 6 6 . 7 . 1 . 1 2 . 1 1 . 4 . 2 5 5 12 4 Actively Blocked 5 | . . . . . . . . . . . . . . . . . . . . . . . 3 2 Part Disruptions 4 | . . . . . . . . . . . . . . . . . . . 1 . . 2 1 . Damage Taken 21667 | . 460 947 2510 336 691 944 188 926 157 891 353 973 591 462 630 625 167 980 1110 634 980 2627 1988 1497 Core 2634 | . 40 160 182 31 58 75 25 89 24 111 66 175 99 86 105 42 . 140 277 78 124 178 286 183 Absorbed by Shields 3767 | . . . . 131 263 177 . . . 4 . . . . . . . 133 74 226 636 545 691 887 Ignored by Resistances 137 | . . . . . 9 76 . 52 . . . . . . . . . . . . . . . . Regen/Repaired (Parts) 3418 | . 122 . 168 . 94 . 123 . . . 33 92 124 73 52 223 197 252 156 224 211 380 706 188 Core Remaining (%) 64 | 100 . 20 . . . . . 16 . . . 46 . 78 . . . 71 . 69 . 76 80 88 Volleys Fired 966 | . 53 59 88 29 70 55 19 54 10 57 24 50 24 5 13 9 13 21 42 33 47 73 56 62 Largest 6 | . 2 2 4 4 4 4 4 4 5 6 4 4 1 1 1 1 1 1 1 1 1 1 1 1 Hottest 220 | . 60 160 152 101 112 112 112 100 125 220 220 220 90 90 5 90 10 90 113 120 120 120 120 120 Shots Fired 2056 | . 107 109 298 97 263 193 44 200 18 195 38 90 24 5 13 9 13 21 42 35 47 76 56 63 Gun 1380 | . 105 . 239 93 262 189 36 198 10 170 22 56 . . . . . . . . . . . . Cannon 378 | . 2 101 59 . 1 . . . . . . 23 13 1 . 4 . 5 2 15 30 47 28 47 Launcher 29 | . . 8 . 4 . 4 . . . 1 . 8 . . . . . . . 4 . . . . Special 269 | . . . . . . . 8 2 8 24 16 3 11 4 13 5 13 16 40 16 17 29 28 16 Kinetic 1425 | . 107 70 252 93 263 189 36 198 10 168 10 29 . . . . . . . . . . . . Thermal 331 | . . 39 46 . . . . . . 2 12 50 13 1 . 4 . 5 2 8 30 47 28 44 Explosive 21 | . . . . 4 . 4 . . . 1 . 8 . . . . . . . 4 . . . . Electromagnetic 10 | . . . . . . . . . . . . . . . . . . . . 7 . . . 3 Robot Hit Streak 31 | . 6 15 15 16 26 18 9 8 11 31 10 11 4 3 16 22 30 6 11 7 17 29 30 6 Robot Miss Streak 11 | . 4 1 5 2 3 3 4 8 1 6 6 11 2 1 . . 1 1 3 2 3 3 3 3 Penetration Max 1 | . . . . . . 1 . . . . . . . . . . . . . . . . . . Secondary Targets 32 | . 1 . 5 . 7 4 . 4 . 6 . 5 . . . . . . . . . . . . Max Gunslinging Chain 1 | . 1 . 1 . 1 1 . 1 . 1 . 1 . . . . . . . . . . . . Shots Hit Robots 1286 | . 64 54 191 51 165 108 23 101 16 134 31 75 22 4 17 24 12 15 32 14 28 41 36 28 Core Hits 507 | . 35 29 82 31 63 47 14 41 3 52 5 49 7 1 3 9 1 2 4 9 6 5 3 6 Critical Kills 8 | . 1 1 1 1 1 . . . . . . . . . . . . . . . 1 2 . . Critical Parts Destroyed 6 | . 1 . 1 1 1 1 . . . 1 . . . . . . . . . . . . . . Critical Strikes 36 | . 2 3 11 2 2 1 . . . 1 5 3 . . . 1 1 . 1 . 1 2 . . Burn 10 | . . . 4 . . . . . . . 4 2 . . . . . . . . . . . . Meltdown 4 | . . 1 . . . . . . . . . . . . . . . . . . 1 2 . . Destroy 11 | . 2 . 3 2 2 1 . . . 1 . . . . . . . . . . . . . . Blast 6 | . . 2 4 . . . . . . . . . . . . . . . . . . . . . Sever 3 | . . . . . . . . . . . 1 1 . . . 1 . . . . . . . . Impale 2 | . . . . . . . . . . . . . . . . . 1 . 1 . . . . . Melee Attacks 293 | . . 3 15 3 3 18 4 17 12 48 7 44 23 14 6 30 4 21 7 14 . . . . Impact . | . . . . . . . . . . . . . . . . . . . . . . . . . Slashing 247 | . . 3 15 3 3 18 4 17 12 48 7 44 23 14 6 30 . . . . . . . . Piercing 46 | . . . . . . . . . . . . . . . . . 4 21 7 14 . . . . Sneak Attacks 23 | . . 1 3 . . . 1 . . 1 4 1 7 . 2 . . . 3 . . . . . Combat Hostiles . | . . . . . . . . . . . . . . . . . . . . . . . . . Follow-up Attacks . | . . . . . . . . . . . . . . . . . . . . . . . . . Damage Inflicted 30127 | . 731 1994 3892 1480 2852 2705 434 1992 206 3203 584 3854 824 31 204 968 38 114 458 768 616 828 612 739 Guns 14180 | . 665 . 2573 815 2840 2467 272 1992 162 1630 242 522 . . . . . . . . . . . . Cannons 5923 | . 20 1124 753 . . . . . . . . 602 253 31 . 33 . 107 81 124 616 828 612 739 Explosions 3409 | . . 798 . 665 . 230 59 . . 45 . 968 . . . . . . . 644 . . . . Melee 6453 | . . 72 501 . . . 92 . 31 1528 342 1762 571 . 204 935 38 . 377 . . . . . Ramming 162 | . 46 . 65 . 12 8 11 . 13 . . . . . . . . 7 . . . . . . Kinetic 15610 | . 685 1504 2918 815 2840 2467 272 1992 162 1594 111 250 . . . . . . . . . . . . Thermal 5220 | . . 418 408 . . . . . . 36 131 874 253 31 . 33 . 107 81 99 616 828 612 693 Explosive 2552 | . . . . 665 . 230 . . . 45 . 968 . . . . . . . 644 . . . . Electromagnetic 130 | . . . . . . . 59 . . . . . . . . . . . . 25 . . . 46 Impact . | . . . . . . . . . . . . . . . . . . . . . . . . . Slashing 6038 | . . 72 501 . . . 92 . 31 1528 342 1762 571 . 204 935 . . . . . . . . Piercing 415 | . . . . . . . . . . . . . . . . . 38 . 377 . . . . . Highest Corruption 23 | . 1 1 . . 4 12 12 23 . 2 2 3 1 1 . . . 6 4 4 5 13 4 18 Average Corruption 4 | . 1 1 . . 1 9 12 17 . 1 2 2 1 1 . . . 4 4 3 1 7 2 12 Corruption Purged 4 | . . . . . . . . . . . . . . . . . . . . 4 . . . . Corruption Blocked . | . . . . . . . . . . . . . . . . . . . . . . . . . Effects 446 | . 10 22 . . 14 60 38 60 . 13 12 19 3 7 . . . 29 3 26 4 71 6 49 Message Errors 107 | . 1 7 . . 5 17 8 14 . 3 1 9 . 2 . . . 6 . 5 1 18 2 8 Matter Fused 105 | . 3 5 . . 3 11 8 11 . 2 5 2 1 . . . . 10 1 7 1 15 3 17 Heat Flow Errors 58 | . 1 3 . . 3 11 4 2 . . 3 1 1 1 . . . 5 1 3 1 11 . 7 Energy Discharges 43 | . . 4 . . 1 4 9 4 . 1 3 1 . . . . . 2 . 2 1 6 . 5 Parts Rejected 4 | . . . . . . 1 . 1 . . . . . . . . . . . . . 1 . 1 Parts Fused 3 | . . . . . . . . . . . . . . 1 . . . . . 1 . 1 . . Data Loss (minor) 56 | . 3 2 . . 1 4 5 8 . 1 . 5 1 3 . . . 2 1 4 . 10 1 5 Data Loss (major) 17 | . 1 . . . . 3 1 3 . 1 . . . . . . . 2 . 2 . 1 . 3 Misfires 18 | . 1 1 . . . . 2 5 . 1 . 1 . . . . . . . 2 . 4 . 1 Alerts 14 | . . . . . 1 2 . 4 . 1 . . . . . . . 2 . . . 2 . 2 Misdirections 3 | . . . . . . . 1 1 . . . . . . . . . . . . . 1 . . Weapon Failures 18 | . . . . . . 7 . 7 . 3 . . . . . . . . . . . 1 . . Overload Shots . | . . . . . . . . . . . . . . . . . . . . . . . . . Overflow Damage 862 | . . 66 34 36 . 4 . . . 41 122 87 146 . 14 . . 11 153 . 2 . 114 32 Projectiles 198 | . . 10 . . . . . . . . . 25 4 . . . . 11 . . 2 . 114 32 Explosions 96 | . . 56 . 36 . 4 . . . . . . . . . . . . . . . . . . Melee 568 | . . . 34 . . . . . . 41 122 62 142 . 14 . . . 153 . . . . . Knockbacks 15 | . . 8 7 . . . . . . . . . . . . . . . . . . . . . Impact . | . . . . . . . . . . . . . . . . . . . . . . . . . Kinetic 12 | . . 7 5 . . . . . . . . . . . . . . . . . . . . . Secondary 3 | . . 1 2 . . . . . . . . . . . . . . . . . . . . . Self-Inflicted Damage 86 | . . 16 . . . 56 5 . 6 . . . . . . . . 3 . . . . . . Shots 2 | . . 1 . . . 1 . . . . . . . . . . . . . . . . . . Rammed 15 | . 12 . . . . . 1 . 1 . . . . . . . . 1 . . . . . . Targets Rammed 26 | . 13 . 8 . 1 1 1 . 1 . . . . . . . . 1 . . . . . . Kicked 10 | . . . 8 . 1 1 . . . . . . . . . . . . . . . . . . Crushed 1 | . 1 . . . . . . . . . . . . . . . . . . . . . . . Highest Temperature 439 | . 264 267 226 216 269 246 229 410 98 439 267 175 126 194 . 248 10 262 231 369 204 354 424 398 Average Temperature 92 | . 41 70 36 71 65 53 85 131 59 144 124 57 50 82 . 115 10 103 86 124 76 92 122 100 Received Heat Transfer 3035 | . 219 45 804 85 337 207 63 63 51 216 78 30 72 45 45 99 24 40 191 57 36 77 116 35 Effects 39 | . . . . . 1 . . 9 . 5 3 . . . . . . . . 6 . 3 9 3 Shutdowns 9 | . . . . . . . . . . . . . . . . . . . . 3 . 1 3 2 Energy Bleed 4 | . . . . . 1 . . 2 . . . . . . . . . . . . . 1 . . Interference 19 | . . . . . . . . 6 . 3 3 . . . . . . . . 2 . . 4 1 Short Circuit 1 | . . . . . . . . . . . . . . . . . . . . . . 1 . . Damage (minor) 6 | . . . . . . . . 1 . 2 . . . . . . . . . 1 . . 2 . Siege Activations . | . . . . . . . . . . . . . . . . . . . . . . . . . Martial Activations . | . . . . . . . . . . . . . . . . . . . . . . . . . Shielding Activations . | . . . . . . . . . . . . . . . . . . . . . . . . . Robots Disrupted . | . . . . . . . . . . . . . . . . . . . . . . . . . Combat Hostiles . | . . . . . . . . . . . . . . . . . . . . . . . . . Robots Corrupted . | . . . . . . . . . . . . . . . . . . . . . . . . . Combat Hostiles . | . . . . . . . . . . . . . . . . . . . . . . . . . Parts Fried 1 | . . . . . . . . . . . . 1 . . . . . . . . . . . . Impact Corruptions . | . . . . . . . . . . . . . . . . . . . . . . . . . Robots Melted 4 | . . 1 . . . . . . . . . . . . . . . . . . 1 2 . . Combat Hostiles 1 | . . 1 . . . . . . . . . . . . . . . . . . . . . . Parts Melted 11 | . . 1 . . . 1 . . . 1 2 2 . 1 . . . . . . 2 1 . . Heat Transferred 7281 | . . 555 1258 . . . . . . 100 750 1850 335 50 . 37 . 111 74 74 443 684 424 536 Parts Sabotaged 1 | . . . . . . . . . . . . . . . . . . . 1 . . . . . Parts Stolen . | . . . . . . . . . . . . . . . . . . . . . . . . . Parts Stripped . | . . . . . . . . . . . . . . . . . . . . . . . . . Power Chain Reactions . | . . . . . . . . . . . . . . . . . . . . . . . . . Alert | -11 -10 -10 -8 -8 -8 -8 -8 -8 -7 -7 -7 -7 -6 -6 -5 -5 -5 -5 -4 -4 -3 -3 -2 -1 ------- Run | Yrd Mat Sub Mat Gar Mat Gar Mat Gar Fac Gar Fac Gar Fac Gar Fac Gar Fac Gar Fac Gar Res Gar Res Acc Maximum Alert Level 5 | . . . 1 3 2 4 3 3 2 4 3 4 3 3 2 4 3 4 2 4 3 5 4 1 Low Security (%) 34 | 100 100 . 73 18 64 25 44 15 96 20 6 4 30 10 33 . 40 12 . 3 19 . . 89 Level 1 21 | . . . 26 47 21 14 9 29 . 2 23 9 61 7 46 25 1 1 18 9 74 2 55 10 Level 2 19 | . . . . 3 13 35 15 19 3 31 58 7 3 24 20 14 57 3 81 39 1 52 1 . Level 3 16 | . . . . 30 . 21 29 34 . 26 11 49 4 57 . 23 . 68 . 33 4 10 27 . Level 4 7 | . . . . . . 2 . . . 19 . 29 . . . 37 . 13 . 14 . 28 15 . Level 5 . | . . . . . . . . . . . . . . . . . . . . . . 5 . . High Security . | . . . . . . . . . . . . . . . . . . . . . . . . . Max Security . | . . . . . . . . . . . . . . . . . . . . . . . . . Peak Influence 1721 | . 119 . 294 727 543 1109 793 907 476 1210 754 1290 723 951 497 1226 707 1291 677 1260 745 1721 1232 244 Initial 967 | . . . . 170 354 27 540 71 476 92 634 184 676 53 497 201 643 114 677 165 708 318 967 226 Average 443 | . 44 . 115 424 182 477 367 495 131 644 521 880 237 689 276 776 423 862 511 755 276 887 639 60 Influence Increases 20744 | . 413 230 1096 577 819 1142 589 926 282 1298 621 1286 667 1016 872 1245 375 1347 525 1305 885 1743 1130 355 Destroy 0b10 Robot/C 9580 | . 240 140 680 460 520 660 340 540 160 680 360 720 320 520 320 480 120 480 120 340 420 560 280 120 Destroy 0b10 Robot/NC 625 | . 35 . 70 . 50 . 30 . 15 30 20 40 45 . 55 20 35 . 60 . 35 20 50 15 Destroy Leader 1212 | . 58 . 176 20 154 40 84 50 30 40 70 60 52 40 32 50 12 40 12 20 92 20 40 20 Allied During Kill 2778 | . . . . . . 15 65 14 10 185 152 57 106 202 138 281 108 347 152 183 229 273 220 41 Successful Hack 365 | . 20 . 27 . 46 24 3 7 11 15 . . 54 . 29 21 42 . 24 14 14 14 . . Select Force Hacks 60 | . . . . . . . . . 30 . . . 30 . . . . . . . . . . . Disable Machine 615 | . 15 . 75 15 30 30 45 . 15 . . . . . 180 . 30 15 45 15 30 15 30 30 Anti-Garrison Action 3050 | . . . . 50 . 200 . 250 . 250 . 300 . 200 . 300 . 300 . 550 . 650 . . Destroy Structure 1979 | . . . 23 32 19 128 7 50 11 98 4 94 15 39 118 63 28 150 112 183 50 161 510 84 Partial Spotted 15 | . . . . . . . . . . . . . . 15 . . . . . . . . . . Lose Combat Pursuer 465 | . 45 90 45 . . 45 15 15 . . 15 15 45 . . 30 . 15 . . 15 30 . 45 Influence Decreases 20744 | . 413 230 833 113 1503 76 1588 129 1057 220 1568 259 1880 144 1533 307 1437 220 1580 281 1720 447 2473 733 Entered New Map 6276 | . . . . 93 373 16 569 39 431 40 576 79 614 24 452 87 583 50 614 71 552 107 754 152 Time Decay 5940 | . 413 200 552 . 680 . 352 . 246 . 342 . 497 . 526 . 334 . 416 . 458 . 559 365 Lost Part 559 | . . 30 70 10 . 20 . 20 . 40 . 50 10 20 10 20 . 30 50 20 20 80 30 29 Lost Ally 3151 | . . . . 10 . 40 40 70 80 140 100 130 104 100 120 200 20 140 500 190 240 260 480 187 Purge Threat 4818 | . . . 211 . 450 . 627 . 300 . 550 . 655 . 425 . 500 . . . 450 . 650 . Squads Dispatched 69 | . 2 . 3 . 4 . 3 . 9 . 5 . 7 . 5 . 1 . 6 . 11 . 9 4 Investigation 10 | . 1 . 1 . 2 . 1 . 2 . 1 . 1 . . . . . . . . . 1 . Extermination 19 | . . . . . . . . . 2 . 1 . 2 . 3 . 1 . 1 . 3 . 4 2 Reinforcement 28 | . 1 . 2 . 1 . 1 . 1 . 2 . 3 . 2 . . . 3 . 7 . 4 1 Assault 4 | . . . . . 1 . 1 . . . . . . . . . . . 2 . . . . . Garrison 8 | . . . . . . . . . 4 . 1 . 1 . . . . . . . 1 . . 1 Intercept . | . . . . . . . . . . . . . . . . . . . . . . . . . Searches Triggered . | . . . . . . . . . . . . . . . . . . . . . . . . . Unchained Authorized 3 | . . . . . . . . . . . . . . . . . . . 1 . 1 . 1 . Construction Impeded 2 | . . . 1 . . . . . . . . . . . 1 . . . . . . . . . Haulers Reinforced 6 | . . . . . . . . . 1 . 1 . 1 . 1 . . . . . 1 . 1 . Active Scanning Responses . | . . . . . . . . . . . . . . . . . . . . . . . . . Cargo Convoy Interrupts 1 | . . . . . . . . . . . . . 1 . . . . . . . . . . . Alert ID Control Effect 107 | . . . . . . . . . . . . . . . . . . 1 28 17 12 4 36 9 Stealth | -11 -10 -10 -8 -8 -8 -8 -8 -8 -7 -7 -7 -7 -6 -6 -5 -5 -5 -5 -4 -4 -3 -3 -2 -1 --------- Run | Yrd Mat Sub Mat Gar Mat Gar Mat Gar Fac Gar Fac Gar Fac Gar Fac Gar Fac Gar Fac Gar Res Gar Res Acc Distress Signals 18 | . . . 6 . 2 . 3 . 1 . . . 1 . . . . . 2 . . . 3 . Communications Jammed 706 | . . . . . . . 57 . . . 4 . 2 . 30 . 172 . 40 . 143 . 246 12 Distress Signals 702 | . . . . . . . 57 . . . 3 . . . 30 . 172 . 39 . 143 . 246 12 Times Spotted 866 | . 20 24 57 24 35 32 29 31 15 35 26 44 31 38 22 26 13 35 76 35 49 62 69 38 Peak Tracking Total 15 | . 3 4 6 8 5 6 6 6 4 6 4 8 4 4 3 5 3 10 15 5 6 8 6 6 Tactical Retreats 25 | . 3 3 3 . . 3 1 1 . . 1 1 1 . . 1 . 1 . . 1 2 . 3 Traps | -11 -10 -10 -8 -8 -8 -8 -8 -8 -7 -7 -7 -7 -6 -6 -5 -5 -5 -5 -4 -4 -3 -3 -2 -1 ------- Run | Yrd Mat Sub Mat Gar Mat Gar Mat Gar Fac Gar Fac Gar Fac Gar Fac Gar Fac Gar Fac Gar Res Gar Res Acc Traps Triggered 64 | . 2 . . 1 . 3 2 5 . 8 . 3 . 3 . 5 2 10 . 10 . 7 3 . Indirectly 1 | . . . . . . . 1 . . . . . . . . . . . . . . . . . Trap Hack Attempts . | . . . . . . . . . . . . . . . . . . . . . . . . . Triggered . | . . . . . . . . . . . . . . . . . . . . . . . . . Disarmed 4 | . . . . . . . . . . . . . 4 . . . . . . . . . . . Reprogrammed 4 | . . . . . . . . . . . . . . . 4 . . . . . . . . . Reused . | . . . . . . . . . . . . . . . . . . . . . . . . . Traps Extracted . | . . . . . . . . . . . . . . . . . . . . . . . . . Installed . | . . . . . . . . . . . . . . . . . . . . . . . . . Triggered . | . . . . . . . . . . . . . . . . . . . . . . . . . Machines | -11 -10 -10 -8 -8 -8 -8 -8 -8 -7 -7 -7 -7 -6 -6 -5 -5 -5 -5 -4 -4 -3 -3 -2 -1 ---------- Run | Yrd Mat Sub Mat Gar Mat Gar Mat Gar Fac Gar Fac Gar Fac Gar Fac Gar Fac Gar Fac Gar Res Gar Res Acc Machines Disabled 86 | . 1 5 5 2 2 5 3 3 1 3 . 3 . 4 12 4 2 6 3 6 2 10 2 2 Max in Single Turn 3 | . 1 3 2 1 1 2 1 1 1 1 . 1 . 1 . 1 1 1 . 1 1 1 . 1 Garrison Access 2 | . . . . . . . . . . . . . . . . . . . . . 1 . . 1 Garrison Relay 35 | . . . . 1 . 3 . 2 . 3 . 3 . 3 . 4 . 3 . 4 . 9 . . Machines Repaired . | . . . . . . . . . . . . . . . . . . . . . . . . . Machines Dismantled . | . . . . . . . . . . . . . . . . . . . . . . . . . Machines Sabotaged . | . . . . . . . . . . . . . . . . . . . . . . . . . Overloaded Fab Kills . | . . . . . . . . . . . . . . . . . . . . . . . . . Hacking | -11 -10 -10 -8 -8 -8 -8 -8 -8 -7 -7 -7 -7 -6 -6 -5 -5 -5 -5 -4 -4 -3 -3 -2 -1 --------- Run | Yrd Mat Sub Mat Gar Mat Gar Mat Gar Fac Gar Fac Gar Fac Gar Fac Gar Fac Gar Fac Gar Res Gar Res Acc Machines Accessed 104 | . 7 2 12 1 15 2 6 3 3 2 4 1 9 2 8 2 4 1 6 3 4 2 3 2 Terminals 72 | . 5 . 8 1 10 2 4 3 2 2 2 1 5 2 7 2 2 1 2 3 2 2 3 1 Fabricators 3 | . . . . . . . . . . . . . 1 . . . 1 . 1 . . . . . Repair Stations 8 | . 1 . 1 . 2 . 1 . . . 1 . 1 . . . . . 1 . . . . . Recycling Units 1 | . 1 . . . . . . . . . . . . . . . . . . . . . . . Scanalyzers 6 | . . . 2 . 2 . . . . . . . 1 . . . . . 1 . . . . . Garrison Access 12 | . . . 1 . 1 . 1 . 1 . 1 . 1 . 1 . 1 . 1 . 2 . . 1 Total Hacks 242 | . 24 5 35 2 30 5 15 4 10 5 9 2 23 5 15 4 10 2 12 4 7 3 8 3 Successful 125 | . 8 5 21 . 16 3 8 1 8 2 5 . 16 . 7 2 8 . 3 2 5 1 2 2 Failed 114 | . 16 . 13 2 13 2 7 3 2 3 4 2 6 5 8 2 2 2 9 2 2 2 6 1 Catastrophic 27 | . 2 . . . 6 . 1 1 1 . 1 1 1 . 4 . 1 2 2 . 1 . 2 1 Database Lockouts 3 | . . . 1 . 1 . . . . . . . 1 . . . . . . . . . . . Manual 101 | . 12 . 11 . 19 3 6 . 6 . 5 . 12 2 8 . 4 . 5 . . . 8 . Terminals 165 | . 15 . 25 2 21 5 10 4 7 5 4 2 15 5 14 4 3 2 3 4 3 3 8 1 Fabricators 8 | . . . . . . . . . . . . . 1 . . . 5 . 2 . . . . . Repair Stations 22 | . 7 . 3 . 4 . 3 . . . 2 . 2 . . . . . 1 . . . . . Recycling Units 2 | . 2 . . . . . . . . . . . . . . . . . . . . . . . Scanalyzers 16 | . . . 6 . 3 . . . . . . . 2 . . . . . 5 . . . . . Garrison Access 24 | . . . 1 . 2 . 2 . 3 . 3 . 3 . 1 . 2 . 1 . 4 . . 2 Terminal Hacks 61 | . 3 5 12 . 7 2 4 1 4 2 . . 7 . 5 2 2 . . 2 1 1 1 . Record 4 | . . 4 . . . . . . . . . . . . . . . . . . . . . . Robot Schematic 2 | . 1 . 1 . . . . . . . . . . . . . . . . . . . . . Robot Analysis 3 | . 1 . 2 . . . . . . . . . . . . . . . . . . . . . Prototype ID Bank 6 | . 1 . 1 . 1 . . . . . . . 1 . 1 . 1 . . . . . . . Open Door 3 | . . . . . . . . 1 . 1 . . . . . 1 . . . . . . . . Branch Access Points 1 | . . . 1 . . . . . . . . . . . . . . . . . . . . . Emergency Access Points 4 | . . . . . . 1 . . . 1 . . . . . 1 . . . . . 1 . . Terminal Index 3 | . . . 1 . . . . . 1 . . . 1 . . . . . . . . . . . Garrison Index 3 | . . . . . 1 . . . 1 . . . . . 1 . . . . . . . . . Alert Level 1 | . . . 1 . . . . . . . . . . . . . . . . . . . . . Unreport Threat 14 | . . . 3 . 3 . 2 . 2 . . . 2 . 1 . . . . . . . 1 . Locate Traps 4 | . . . . . . . 1 . . . . . . . 1 . 1 . . . 1 . . . Disarm Traps 1 | . . . . . . . . . . . . . 1 . . . . . . . . . . . Reprogram Traps 2 | . . . . . . . . . . . . . 1 . 1 . . . . . . . . . Hauler Manifests 2 | . . . . . 1 . 1 . . . . . . . . . . . . . . . . . Zone Layout 4 | . . . 2 . 1 . . . . . . . 1 . . . . . . . . . . . Garrison Registry 1 | . . . . . . . . . . . . . . . . . . . . 1 . . . . Patrol Navigation 1 | . . . . . . 1 . . . . . . . . . . . . . . . . . . Security Stations 1 | . . . . . . . . . . . . . . . . . . . . 1 . . . . Proto ID Catalog 1 | . . 1 . . . . . . . . . . . . . . . . . . . . . . Fabricator Hacks 3 | . . . . . . . . . . . . . 1 . . . 2 . . . . . . . Network Status 1 | . . . . . . . . . . . . . 1 . . . . . . . . . . . Load Schematic 1 | . . . . . . . . . . . . . . . . . 1 . . . . . . . Build 1 | . . . . . . . . . . . . . . . . . 1 . . . . . . . Repair Station Hacks 16 | . 4 . 2 . 4 . 2 . . . 2 . 2 . . . . . . . . . . . Scan Component 9 | . 3 . 1 . 2 . 1 . . . 1 . 1 . . . . . . . . . . . Repair 7 | . 1 . 1 . 2 . 1 . . . 1 . 1 . . . . . . . . . . . Recycling Unit Hacks 1 | . 1 . . . . . . . . . . . . . . . . . . . . . . . Retrieve Components 1 | . 1 . . . . . . . . . . . . . . . . . . . . . . . Scanalyzer 7 | . . . 2 . 2 . . . . . . . 2 . . . . . 1 . . . . . Retrieve Study 7 | . . . 2 . 2 . . . . . . . 2 . . . . . 1 . . . . . Garrison Access Hacks 20 | . . . 1 . 1 . 2 . 2 . 2 . 2 . 1 . 2 . 1 . 4 . . 2 Unlock Access 10 | . . . 1 . 1 . 1 . 1 . 1 . 1 . 1 . 1 . 1 . 1 . . . Seal Access 2 | . . . . . . . . . . . . . . . . . . . . . 1 . . 1 Coupler Status 8 | . . . . . . . 1 . 1 . 1 . 1 . . . 1 . . . 2 . . 1 Unauthorized Hacks 17 | . . . 4 . 2 1 . . 2 . 1 . 2 . 1 . 2 . 1 . . . 1 . Terminals 12 | . . . 4 . 1 1 . . 1 . 1 . 1 . 1 . 1 . . . . . 1 . Assimilate 2 | . . . 2 . . . . . . . . . . . . . . . . . . . . . Botnet 3 | . . . 1 . 1 1 . . . . . . . . . . . . . . . . . . Operators 7 | . . . 1 . . . . . 1 . 1 . 1 . 1 . 1 . . . . . 1 . Fabricators 2 | . . . . . . . . . . . . . . . . . 1 . 1 . . . . . Prioritize 1 | . . . . . . . . . . . . . . . . . 1 . . . . . . . Liberate 1 | . . . . . . . . . . . . . . . . . . . 1 . . . . . Repair Stations . | . . . . . . . . . . . . . . . . . . . . . . . . . Recycling Units . | . . . . . . . . . . . . . . . . . . . . . . . . . Scanalyzers . | . . . . . . . . . . . . . . . . . . . . . . . . . Garrison Access 3 | . . . . . 1 . . . 1 . . . 1 . . . . . . . . . . . Restock 1 | . . . . . 1 . . . . . . . . . . . . . . . . . . . Eject 2 | . . . . . . . . . 1 . . . 1 . . . . . . . . . . . Data Cores Recovered 3 | . . . . . 1 . 1 . . . . . 1 . . . . . . . . . . . Used 1 | . . . . . . . . . . . . . 1 . . . . . . . . . . . Hacking Detections 82 | . 6 . 10 1 13 1 5 2 2 1 4 1 6 2 8 2 2 1 5 2 3 1 3 1 Full Trace Events 15 | . 1 . 2 . 3 . 1 1 1 . 1 1 . 1 . . . 1 . 1 . . 1 . Feedback Events 3 | . . . . . 2 . . . . . . . . 1 . . . . . . . . . . Corruption 2 | . . . . . 2 . . . . . . . . . . . . . . . . . . . Hackware Fried 1 | . . . . . . . . . . . . . . 1 . . . . . . . . . . Feedback Blocked . | . . . . . . . . . . . . . . . . . . . . . . . . . Robot Schematics Acquired 2 | . 1 . 1 . . . . . . . . . . . . . . . . . . . . . Robots Built 1 | . . . . . . . . . . . . . . . . . 1 . . . . . . . Authchips 1 | . . . . . . . . . . . . . . . . . 1 . . . . . . . Time 29 | . . . . . . . . . . . . . . . . . 29 . . . . . . . Total Robot Build Rating 3 | . . . . . . . . . . . . . . . . . 3 . . . . . . . Part Schematics Acquired . | . . . . . . . . . . . . . . . . . . . . . . . . . Parts Built . | . . . . . . . . . . . . . . . . . . . . . . . . . Authchips . | . . . . . . . . . . . . . . . . . . . . . . . . . Time . | . . . . . . . . . . . . . . . . . . . . . . . . . Total Part Build Rating . | . . . . . . . . . . . . . . . . . . . . . . . . . Part Studies Acquired 7 | . . . 2 . 2 . . . . . . . 2 . . . . . 1 . . . . . Parts Repaired 7 | . 1 . 1 . 2 . 1 . . . 1 . 1 . . . . . . . . . . . Time 300 | . 36 . 44 . 76 . 44 . . . 56 . 44 . . . . . . . . . . . Parts Recycled . | . . . . . . . . . . . . . . . . . . . . . . . . . Recycled Matter . | . . . . . . . . . . . . . . . . . . . . . . . . . Retrieved Matter . | . . . . . . . . . . . . . . . . . . . . . . . . . Retrieved Components 10 | . 10 . . . . . . . . . . . . . . . . . . . . . . . Parts Scanalyzed . | . . . . . . . . . . . . . . . . . . . . . . . . . Part Schematics Acquired . | . . . . . . . . . . . . . . . . . . . . . . . . . Parts Damaged . | . . . . . . . . . . . . . . . . . . . . . . . . . Bothacking | -11 -10 -10 -8 -8 -8 -8 -8 -8 -7 -7 -7 -7 -6 -6 -5 -5 -5 -5 -4 -4 -3 -3 -2 -1 ------------ Run | Yrd Mat Sub Mat Gar Mat Gar Mat Gar Fac Gar Fac Gar Fac Gar Fac Gar Fac Gar Fac Gar Res Gar Res Acc Used RIF Installer 12 | . . . . 2 . 1 . 2 . 1 . 1 . 2 . 1 . 1 . 1 . . . . Coupler Efficiency 2 | . . . . . . . . 1 . . . . . 1 . . . . . . . . . . Code Merge 1 | . . . . . . . . . . . . . . 1 . . . . . . . . . . Command Fork 1 | . . . . . . . . . . . . 1 . . . . . . . . . . . . Signal Jammer 1 | . . . . . . 1 . . . . . . . . . . . . . . . . . . Robot Detection 1 | . . . . . . . . . . . . . . . . 1 . . . . . . . . Watcher Feeds 1 | . . . . 1 . . . . . . . . . . . . . . . . . . . . Patrol Navigation 1 | . . . . . . . . 1 . . . . . . . . . . . . . . . . Alert ID Control 1 | . . . . . . . . . . . . . . . . . . 1 . . . . . . Program Shield 1 | . . . . . . . . . . . . . . . . . . . . 1 . . . . Autooverride 1 | . . . . . . . . . . 1 . . . . . . . . . . . . . . Robots Hacked 155 | . . . . . . . 4 2 8 11 8 1 4 4 10 7 4 10 20 3 7 16 22 14 Non-combat 33 | . . . . . . . 2 . 4 . 3 . 1 . 5 . 3 . 3 . 3 . 5 4 Combat 122 | . . . . . . . 2 2 4 11 5 1 3 4 5 7 1 10 17 3 4 16 17 10 Autooverrided 23 | . . . . . . . . . . 3 1 . 1 1 1 2 . 1 2 . . 5 2 4 Robot Hacks Applied 166 | . . . . . . . 8 2 8 9 13 1 6 3 11 5 9 9 19 3 12 13 24 11 parse_system 6 | . . . . . . . . . . 1 . . . . . . . 1 1 2 . 1 . . hold_bot 2 | . . . . . . . . . . . . . . . 1 . . . . . 1 . . . drop_inventory 14 | . . . . . . . . . 3 . 2 . . . 3 . 1 . 1 . 1 . 2 1 purge_threat 29 | . . . . . . . 4 . . . 6 . 3 . 2 . 5 . . . 4 . 5 . block_reporting 2 | . . . . . . . 1 . . . . . . . 1 . . . . . . . . . map_route 5 | . . . . . . . . . . . . . . . . . . . . . . . 1 4 find_garrison 3 | . . . . . . . . . . . 1 . . . . . . . 1 . 1 . . . overload_power 2 | . . . . . . . . . 1 . . . . . . . . . . . . 1 . . amplify_resonance 20 | . . . . . . . . 2 . 1 . . . 1 . 1 . 1 2 1 . 5 3 3 reboot_system 1 | . . . . . . . . . . 1 . . . . . . . . . . . . . . overwrite_iff 23 | . . . . . . . 2 . . 1 2 . 1 1 . 2 . 1 3 . 2 1 7 . streamctrl_low 1 | . . . . . . . . . . . . . . . . . . . . . . . 1 . formatsys_low 6 | . . . . . . . 1 . . . 1 . 1 . . . 2 . . . 1 . . . formatsys_high 52 | . . . . . . . . . 4 5 1 1 1 1 4 2 1 6 11 . 2 5 5 3 Relay Couplers Released 152 | . . . . 4 4 13 . 7 3 13 . 10 3 15 . 17 . 11 . 15 4 32 . 1 Ejected 6 | . . . . . . . . . 3 . . . 3 . . . . . . . . . . . Machine Destruction 135 | . . . . 4 . 13 . 7 . 13 . 10 . 15 . 13 . 11 . 15 1 32 . 1 Programmers 11 | . . . . . 4 . . . . . . . . . . 4 . . . . 3 . . . Attached 45 | . . . . . . 1 2 2 2 5 3 . 3 1 2 4 . 4 4 . 2 5 3 2 Merged Code Value 278 | . . . . . . . . . . . . . . . . 56 . 46 . 53 10 113 . . Fabnet Peak Effective % . | . . . . . . . . . . . . . . . . . . . . . . . . . Robots Rewired 23 | . . . . . . 5 . . . 9 . . . . . . . 2 . 5 . 2 . . Allies Hacked 15 | . . . . . . . . . . . . . 2 . 2 . 1 2 3 1 . 2 1 1 Hacks Repelled 1 | . . . . . . . . . . . . . . . 1 . . . . . . . . . Allies | -11 -10 -10 -8 -8 -8 -8 -8 -8 -7 -7 -7 -7 -6 -6 -5 -5 -5 -5 -4 -4 -3 -3 -2 -1 -------- Run | Yrd Mat Sub Mat Gar Mat Gar Mat Gar Fac Gar Fac Gar Fac Gar Fac Gar Fac Gar Fac Gar Res Gar Res Acc Total Allies 156 | . . . 1 . . 5 3 2 4 20 5 1 5 5 5 10 4 15 19 7 5 15 17 8 Largest Group 12 | . . . 1 1 . 2 3 3 2 12 10 3 2 2 4 6 5 10 12 6 3 5 6 3 Highest-Rated Group 683 | . . . 10 10 . 80 120 91 48 385 316 81 58 109 176 283 180 585 683 301 220 612 568 277 Highest-Rated Ally 183 | . . . 10 10 . 40 40 40 32 80 40 39 32 80 49 62 62 148 148 142 95 148 183 183 Total Orders 76 | . . . 2 4 . . . . . . 3 11 4 . 9 4 11 7 . . 5 4 11 1 STAY 35 | . . . . 2 . . . . . . 2 6 1 . 6 2 3 3 . . 3 2 4 1 ROAM 4 | . . . 1 . . . . . . . . . 1 . . . . 2 . . . . . . FOLLOW 30 | . . . 1 2 . . . . . . 1 5 1 . 3 2 5 2 . . 2 2 4 . AID 4 | . . . . . . . . . . . . . . . . . 2 . . . . . 2 . DROP 3 | . . . . . . . . . . . . . 1 . . . 1 . . . . . 1 . Ally Attacks 1913 | . . . . . . 14 52 21 19 53 62 56 109 101 64 100 34 88 223 135 253 122 311 96 Total Damage 63870 | . . . . . . 251 1055 502 663 2023 1435 1739 2339 2537 3499 3882 873 3302 7873 4749 8087 5471 10525 3065 Kills 429 | . . . . . . 3 16 4 9 17 18 16 17 25 31 23 12 26 44 28 36 32 58 14 Allies Corrupted 14 | . . . . . . . . . . . . . . . 1 . . 1 2 1 2 . 3 4 Allies Melted 4 | . . . . . . . . . . . . . . 1 . 1 . . . . 1 . 1 . Borg Created 73 | . . . . . . . . . . . . 7 5 4 6 5 . 1 4 8 5 9 11 8 Largest Collective 5 | . . . . . . . . . . . . 3 5 5 3 5 . 5 4 5 5 4 3 2 Intel | -11 -10 -10 -8 -8 -8 -8 -8 -8 -7 -7 -7 -7 -6 -6 -5 -5 -5 -5 -4 -4 -3 -3 -2 -1 ------- Run | Yrd Mat Sub Mat Gar Mat Gar Mat Gar Fac Gar Fac Gar Fac Gar Fac Gar Fac Gar Fac Gar Res Gar Res Acc Active Infowar (turns) 5778 | . 1 1671 185 . . . . . . . . . 444 738 1458 95 . 329 89 389 379 . . . Structural 1857 | . 1 1671 185 . . . . . . . . . . . . . . . . . . . . . Jamming 3921 | . . . . . . . . . . . . . 444 738 1458 95 . 329 89 389 379 . . . Robot Analysis Total 3 | . 1 . 2 . . . . . . . . . . . . . . . . . . . . . Derelict Logs Recovered 1 | . . 1 . . . . . . . . . . . . . . . . . . . . . . Drone Launches . | . . . . . . . . . . . . . . . . . . . . . . . . . Drone Recoveries . | . . . . . . . . . . . . . . . . . . . . . . . . . Exploration | -11 -10 -10 -8 -8 -8 -8 -8 -8 -7 -7 -7 -7 -6 -6 -5 -5 -5 -5 -4 -4 -3 -3 -2 -1 ------------- Run | Yrd Mat Sub Mat Gar Mat Gar Mat Gar Fac Gar Fac Gar Fac Gar Fac Gar Fac Gar Fac Gar Res Gar Res Acc Turns Passed 37804 | 65 1679 3592 4046 818 3015 1568 912 1210 522 1526 763 1392 1338 943 1465 1217 751 1357 1018 2179 1154 2190 1655 1429 Spaces Moved 16599 | 37 664 1278 1236 263 979 693 523 646 271 823 396 680 762 627 836 602 365 645 499 1030 474 874 777 619 Core 15 | 14 . . . . . . . . . . . . . . . . . . . . . 1 . . Treads 2606 | 23 664 1278 286 . . . . . . . . . . . . . . . . . 2 353 . . Legs 2343 | . . . 950 263 979 151 . . . . . . . . . . . . . . . . . . Wheels 11635 | . . . . . . 542 523 646 271 823 396 680 762 627 836 602 365 645 499 1030 472 520 777 619 Hover . | . . . . . . . . . . . . . . . . . . . . . . . . . Flight . | . . . . . . . . . . . . . . . . . . . . . . . . . Fastest Speed 50 | 50 160 160 200 270 270 150 135 135 135 135 135 135 130 130 145 145 145 145 145 161 155 135 134 126 Average Speed 183 | 153 205 233 277 270 270 176 148 149 135 142 138 158 136 131 145 163 166 176 176 184 185 192 146 133 Slowest Speed 3450 | 250 320 320 320 270 270 270 150 150 150 150 150 165 150 145 145 180 180 180 365 230 385 3450 175 150 Overloaded Moves . | . . . . . . . . . . . . . . . . . . . . . . . . . Propulsion Burnouts . | . . . . . . . . . . . . . . . . . . . . . . . . . Robots Hopped . | . . . . . . . . . . . . . . . . . . . . . . . . . Potential Cave-ins . | . . . . . . . . . . . . . . . . . . . . . . . . . Cave-ins Triggered . | . . . . . . . . . . . . . . . . . . . . . . . . . Exploration Rate (%) 56 | 3 99 95 80 46 91 89 63 74 14 90 18 83 22 61 34 81 16 79 25 85 20 79 35 28 Regions Visited 24 Branch Regions 1 Pre-discovered Areas 1 | . . 1 . . . . . . . . . . . . . . . . . . . . . . Known Exits Taken 10 | . . . 1 . 1 . 1 . 1 . 1 . 1 . 1 . 1 . 1 . 1 . . . Unknown Exits Taken 4 | 1 1 1 . . . . . . . . . . . . . . . . . . . . 1 . Scrap Searched 15 | . . 15 . . . . . . . . . . . . . . . . . . . . . . Spaces Dug 98 | . . 5 4 . 3 . 2 5 10 1 2 1 12 4 2 3 . 9 2 6 8 5 5 9 Terrain Destroyed 319 | . . 100 15 7 8 13 2 5 10 3 2 24 15 4 2 3 . 9 2 35 12 16 12 20 Melee 58 | . . 1 2 . 3 . 2 5 10 1 2 1 10 4 2 . . 8 2 5 . . . . Projectile 104 | . . 9 13 . 5 5 . . . . . . 5 . . 3 . 1 . 3 12 16 12 20 AOE 156 | . . 90 . 7 . 7 . . . 2 . 23 . . . . . . . 27 . . . . Terrain Rammed . | . . . . . . . . . . . . . . . . . . . . . . . . . Walls Destroyed . | . . . . . . . . . . . . . . . . . . . . . . . . . Machines Disabled . | . . . . . . . . . . . . . . . . . . . . . . . . . Actions | -11 -10 -10 -8 -8 -8 -8 -8 -8 -7 -7 -7 -7 -6 -6 -5 -5 -5 -5 -4 -4 -3 -3 -2 -1 --------- Run | Yrd Mat Sub Mat Gar Mat Gar Mat Gar Fac Gar Fac Gar Fac Gar Fac Gar Fac Gar Fac Gar Res Gar Res Acc Total 22175 | 42 873 1773 1635 319 1208 892 638 823 404 1083 579 871 983 716 1052 765 493 807 597 1244 697 1304 1230 1147 Wait 2950 | . 122 394 180 3 118 54 54 32 83 60 137 44 140 36 155 39 97 39 14 42 132 241 325 409 Move 16582 | 36 663 1277 1236 262 978 692 523 645 271 822 396 679 761 626 836 601 365 644 499 1029 474 873 776 618 Hop . | . . . . . . . . . . . . . . . . . . . . . . . . . Pick Up 231 | . 12 14 25 5 10 12 6 7 6 8 5 16 10 12 6 9 2 7 7 17 7 12 9 7 Fast Attach 62 | 6 2 . 9 . 1 3 . 4 . 4 . . . 1 2 5 1 1 2 1 . 13 4 3 Attach 92 | . 2 4 13 1 . 2 2 4 3 4 1 6 3 1 4 . 1 6 9 1 9 6 4 6 Detach 28 | . 2 . 7 . . 2 . 2 1 2 . 2 . . 1 . . 1 . 2 1 5 . . Swap 324 | . 2 16 24 8 13 12 14 13 13 20 5 6 13 5 14 14 9 14 10 20 16 20 23 20 Drop 195 | . 2 6 30 3 14 9 14 5 4 7 3 8 4 11 5 13 1 3 2 18 5 11 8 9 Fire 966 | . 53 59 88 29 70 55 19 54 10 57 24 50 24 5 13 9 13 21 42 33 47 73 56 62 Melee 293 | . . 3 15 3 3 18 4 17 12 48 7 44 23 14 6 30 4 21 7 14 . . . . Ram 2 | . . . . . . . 1 . . . . . . . . . . 1 . . . . . . Kick 10 | . . . 8 . 1 1 . . . . . . . . . . . . . . . . . . Crush 13 | . 13 . . . . . . . . . . . . . . . . . . . . . . . Escape Stasis 298 | . . . . 5 . 8 . 40 . 48 . 8 . . . 40 . 48 . 56 . 37 8 . Rewire 40 | . . . . . . 24 1 . 1 3 1 1 . . 2 . . . 1 1 . . 3 2 Trap . | . . . . . . . . . . . . . . . . . . . . . . . . . Miscellaneous 89 | . . . . . . . . . . . . 7 5 5 8 5 . 1 4 10 6 13 14 11 Route ------- -11/Scrapyard -10/Materials (discovered 5 exits: [*Mat x3] / [*Min] / *Sub) -10/Subcaves (discovered 3 exits: *Mat x2 / [*Rec]) -8/Materials (discovered 5 exits: *Fac x2 / *Sto x2 / Gar) -8/Garrison -8/Materials (discovered 5 exits: *Fac x3 / *Sto / Gar) -8/Garrison (discovered 4 exits: *Fac x3 / *Mat) -8/Materials (discovered 3 exits: *Fac / *Sto / Gar) -8/Garrison (discovered 3 exits: *Fac x3) -7/Factory -7/Garrison (discovered 4 exits: *Fac x4) -7/Factory (discovered 2 exits: *Fac / Gar) -7/Garrison (discovered 3 exits: *Fac x3) -6/Factory -6/Garrison (discovered 2 exits: *Fac x2) -5/Factory (discovered 3 exits: *Fac / [*Upp] / Gar) -5/Garrison (discovered 3 exits: *Fac x3) -5/Factory -5/Garrison (discovered 3 exits: *Fac x3) -4/Factory -4/Garrison (discovered 3 exits: *Res x3) -3/Research (discovered 3 exits: *Res / [*Tes] / Gar) -3/Garrison (discovered 3 exits: *Res x3) -2/Research (discovered 2 exits: *Acc x2) -1/Access To Epsilon Eridani History --------- Turn | Location | Event 20 | -11/Scrapyard | Discovered new exit (range 16) 66 | -11/Scrapyard | Entered Materials 314 | -10/Materials | Build established: Mutant 660 | -10/Materials | Discovered new exit (range 13) 720 | -10/Materials | Discovered new exit (range 16) 980 | -10/Materials | Discovered new exit (range 15) 1514 | -10/Materials | Discovered new exit (range 16) 1630 | -10/Materials | Repaired Broken Lgt. Treads 1730 | -10/Materials | Discovered new exit (range 7) 1745 | -10/Materials | Entered Subcaves 1856 | -10/Subcaves | Discovered new exit (range 10) 2046 | -10/Subcaves | Disturbed a concealed Subdweller 2414 | -10/Subcaves | A swath of the cavern ceiling suddenly collapsed 3156 | -10/Subcaves | Discovered new exit (range 16) 3256 | -10/Subcaves | Shifting Twisted Machinery released Sub. Power Source 3263 | -10/Subcaves | Shifting Twisted Machinery released Sub. Machine Gun 3402 | -10/Subcaves | Core integrity fell below 50% 3521 | -10/Subcaves | Ambushed by Subdweller buried in earth 3597 | -10/Subcaves | Disturbed a concealed Subdweller 3821 | -10/Subcaves | Visited Clippyterm 3825 | -10/Subcaves | Learned location of Deep Caves (-6) 3825 | -10/Subcaves | Learned Factory stockpile data 4247 | -10/Subcaves | Learned Materials trap positions 4294 | -10/Subcaves | Visited 4L-MR0's lab 4317 | -10/Subcaves | Found Prototype Special Melee Weapon 4324 | -10/Subcaves | Found Cargo Legs 4474 | -10/Subcaves | Shifting Twisted Machinery released Sub. Machine Gun 5302 | -10/Subcaves | Discovered new exit (range 5) 5337 | -10/Subcaves | Entered Materials 5337 | -8/Materials | Evolved 4 slots: Utility x2, Weapon x2 5338 | -8/Materials | Loaded intel: 12 trap records 5634 | -8/Materials | Build established: Scavenger-Tank 6471 | -8/Materials | Attached Cargo Legs, gained temporary slots: Utility x2 6594 | -8/Materials | Found Powered Armor 6599 | -8/Materials | Found Powered Armor 6603 | -8/Materials | Found Powered Armor 7057 | -8/Materials | Identified exit to Storage 7180 | -8/Materials | Discovered new exit (range 3) 7935 | -8/Materials | Build established: Tank 8142 | -8/Materials | Discovered new exit (range 10) 8594 | -8/Materials | Lost 3 parts (2u1w) 8634 | -8/Materials | Destroyed 8 combat bots 8729 | -8/Materials | Repaired Powered Armor? 8891 | -8/Materials | Central database locked down 9272 | -8/Materials | Identified exit to Garrison 9383 | -8/Materials | Entered Garrison 9383 | -8/Garrison | Accompanied by 1 ally 9464 | -8/Garrison | Installed Relay Interface Framework 9527 | -8/Garrison | Triggered checkpoint 9629 | -8/Garrison | Expanded RIF knowledge: Watcher Feeds 9661 | -8/Garrison | Garrison Relay disabled 9924 | -8/Garrison | Triggered checkpoint 9948 | -8/Garrison | Triggered checkpoint 9977 | -8/Garrison | Destroyed 17 combat bots 10128 | -8/Garrison | Discovered new exit (range 13) 10201 | -8/Garrison | Entered Materials 10570 | -8/Materials | Discovered exit to Storage (range 14) 10601 | -8/Materials | First assault squad dispatched 10624 | -8/Materials | Met 7R-MNS 10715 | -8/Materials | Discovered new exit (range 16) 11295 | -8/Materials | Discovered new exit (range 16) 11605 | -8/Materials | Repaired Powered Armor 12265 | -8/Materials | Discovered new exit (range 16) 12433 | -8/Materials | Repaired Shield Generator 12863 | -8/Materials | Central database locked down 13142 | -8/Materials | Identified exit to Garrison 13216 | -8/Materials | Entered Garrison 13484 | -8/Garrison | Build established: Bothacker-Tank 13564 | -8/Garrison | Core integrity fell below 50% 13583 | -8/Garrison | System corruption reached 10% 13697 | -8/Garrison | Garrison Relay disabled 13846 | -8/Garrison | Triggered checkpoint 13848 | -8/Garrison | Triggered checkpoint 13870 | -8/Garrison | Triggered checkpoint 13916 | -8/Garrison | Triggered checkpoint 14024 | -8/Garrison | Triggered checkpoint 14046 | -8/Garrison | Discovered new exit (range 15) 14098 | -8/Garrison | Garrison Relay disabled 14247 | -8/Garrison | Discovered new exit (range 11) 14248 | -8/Garrison | Triggered checkpoint 14481 | -8/Garrison | Expanded RIF knowledge: Signal Jamming 14638 | -8/Garrison | Discovered new exit (range 3) 14674 | -8/Garrison | Triggered checkpoint 14750 | -8/Garrison | Triggered checkpoint 14760 | -8/Garrison | Discovered new exit (range 5) 14784 | -8/Garrison | Entered Materials 14784 | -8/Materials | Accompanied by 3 allies 15001 | -8/Materials | Discovered exit to Storage (range 11) 15184 | -8/Materials | First assault squad dispatched 15357 | -8/Materials | Repaired Arm. Huge Wheel+ 15661 | -8/Materials | Discovered new exit (range 17) 15696 | -8/Materials | Identified exit to Garrison 15696 | -8/Materials | Entered Garrison 15696 | -8/Garrison | Accompanied by 2 allies 15801 | -8/Garrison | Expanded RIF knowledge: Coupler Efficiency 15874 | -8/Garrison | Triggered checkpoint 15908 | -8/Garrison | Rescued a captive Derelict 15910 | -8/Garrison | Rescued a captive Derelict 15951 | -8/Garrison | Garrison Relay disabled 16032 | -8/Garrison | Triggered checkpoint 16098 | -8/Garrison | Triggered checkpoint 16132 | -8/Garrison | Garrison Relay disabled 16191 | -8/Garrison | Discovered new exit (range 10) 16342 | -8/Garrison | Triggered checkpoint 16385 | -8/Garrison | Core integrity fell below 20% 16411 | -8/Garrison | Destroyed 10 combat bots 16432 | -8/Garrison | Triggered checkpoint 16518 | -8/Garrison | Expanded RIF knowledge: Patrol Navigation 16600 | -8/Garrison | Discovered new exit (range 13) 16812 | -8/Garrison | Discovered new exit (range 10) 16814 | -8/Garrison | Triggered checkpoint 16906 | -8/Garrison | Entered Factory 16906 | -7/Factory | Evolved 2 slots: Weapon x2 17150 | -7/Factory | Garrison activated, responded to threat 17214 | -7/Factory | Build established: Bothacker-Executioner 17307 | -7/Factory | Garrison activated, responded to threat 17326 | -7/Factory | Garrison activated, responded to threat 17374 | -7/Factory | Identified exit to Garrison 17428 | -7/Factory | Entered Garrison 17486 | -7/Garrison | Triggered checkpoint 17593 | -7/Garrison | Found embedded Infiltrators 17638 | -7/Garrison | Triggered checkpoint 17734 | -7/Garrison | Triggered checkpoint 17795 | -7/Garrison | Destroyed 8 combat bots 17826 | -7/Garrison | Triggered checkpoint 17857 | -7/Garrison | Expanded RIF knowledge: Autooverride 17905 | -7/Garrison | Triggered checkpoint 17943 | -7/Garrison | Garrison Relay disabled 17952 | -7/Garrison | Triggered checkpoint 17978 | -7/Garrison | Discovered new exit (range 6) 18034 | -7/Garrison | Discovered new exit (range 14) 18203 | -7/Garrison | Discovered new exit (range 14) 18311 | -7/Garrison | Build established: Botlord-Executioner 18316 | -7/Garrison | Triggered checkpoint 18340 | -7/Garrison | Garrison Relay disabled 18578 | -7/Garrison | Triggered checkpoint 18609 | -7/Garrison | Garrison Relay disabled 18709 | -7/Garrison | Discovered new exit (range 4) 18954 | -7/Garrison | Entered Factory 18954 | -7/Factory | Accompanied by 10 allies 19207 | -7/Factory | Repaired Adv. Cooling System 19236 | -7/Factory | Lost 6 allies 19360 | -7/Factory | Discovered new exit (range 7) 19461 | -7/Factory | Lost 3 allies 19678 | -7/Factory | Identified exit to Garrison 19716 | -7/Factory | Garrison activated, responded to threat 19717 | -7/Factory | Entered Garrison 19717 | -7/Garrison | Accompanied by 3 allies 19837 | -7/Garrison | Garrison Relay disabled 19944 | -7/Garrison | Destroyed 10 combat bots 19945 | -7/Garrison | Triggered checkpoint 20127 | -7/Garrison | Discovered new exit (range 14) 20241 | -7/Garrison | Triggered checkpoint 20271 | -7/Garrison | Identified 1B-0RG's Assimilator 20340 | -7/Garrison | Assimilating Virus 4a into Collective. 20358 | -7/Garrison | Assimilating Virus 4b into Collective. 20374 | -7/Garrison | Garrison Relay disabled 20419 | -7/Garrison | Triggered checkpoint 20426 | -7/Garrison | Assimilating Virus 4c into Collective. 20515 | -7/Garrison | Triggered checkpoint 20528 | -7/Garrison | Core integrity fell below 50% 20530 | -7/Garrison | Assimilating Virus 4d into Collective. 20535 | -7/Garrison | Assimilating Virus 4e into Collective. 20552 | -7/Garrison | Lost 3 allies 20556 | -7/Garrison | Build established: Botlord-Mutant 20609 | -7/Garrison | Triggered checkpoint 20638 | -7/Garrison | Expanded RIF knowledge: Command Fork 20656 | -7/Garrison | Garrison Relay disabled 20691 | -7/Garrison | Discovered new exit (range 22) 20814 | -7/Garrison | Assimilating Guardian 4l into Collective. 20921 | -7/Garrison | Discovered new exit (range 12) 20941 | -7/Garrison | Triggered checkpoint 20943 | -7/Garrison | Assimilating Trooper 4c into Collective. 21109 | -7/Garrison | Entered Factory 21109 | -6/Factory | Accompanied by 3 allies 21109 | -6/Factory | Evolved 2 slots: Propulsion x1, Utility x1 21324 | -6/Factory | Assimilating Conveyor 5a into Collective. 21657 | -6/Factory | Repaired Remote Datajack+ 21706 | -6/Factory | Assimilating Hacker 5a into Collective. 21912 | -6/Factory | Assimilating Hacker 5b into Collective. 22012 | -6/Factory | Garrison activated, responded to threat 22033 | -6/Factory | Watched by a mysterious "MATRIX" hacker. 22070 | -6/Factory | Central database locked down 22131 | -6/Factory | Assimilating Soldier 5a into Collective. 22158 | -6/Factory | Lost 3 allies 22274 | -6/Factory | Assimilating Slayer 5a into Collective. 22327 | -6/Factory | Cargo convoy interrupted 22398 | -6/Factory | Identified exit to Garrison 22447 | -6/Factory | Entered Garrison 22447 | -6/Garrison | Accompanied by 4 allies 22465 | -6/Garrison | Expanded RIF knowledge: Coupler Efficiency 22513 | -6/Garrison | Triggered checkpoint 22546 | -6/Garrison | Garrison Relay disabled 22604 | -6/Garrison | Mak. Hacking Suite fried by hacking feedback 22612 | -6/Garrison | Triggered checkpoint 22621 | -6/Garrison | Triggered checkpoint 22641 | -6/Garrison | Triggered checkpoint 22667 | -6/Garrison | Triggered checkpoint 22667 | -6/Garrison | Assimilating Soldier 5b into Collective. 22672 | -6/Garrison | Assimilating Soldier 5c into Collective. 22788 | -6/Garrison | Discovered new exit (range 11) 22823 | -6/Garrison | Triggered checkpoint 22826 | -6/Garrison | Assimilating Soldier 5e into Collective. 22845 | -6/Garrison | Triggered checkpoint 22855 | -6/Garrison | Garrison Relay disabled 22921 | -6/Garrison | Found embedded Infiltrators 22938 | -6/Garrison | Expanded RIF knowledge: Code Merge 23053 | -6/Garrison | Triggered checkpoint 23078 | -6/Garrison | Garrison Relay disabled 23097 | -6/Garrison | Triggered checkpoint 23126 | -6/Garrison | Discovered new exit (range 14) 23154 | -6/Garrison | Spotted B-75 Beast 23168 | -6/Garrison | Assimilating Hacker 5c into Collective. 23169 | -6/Garrison | Allies destroyed B-75 Beast 23180 | -6/Garrison | Found Relay Coupler [Proto] 23195 | -6/Garrison | Lost 3 allies 23390 | -6/Garrison | Entered Factory 23390 | -5/Factory | Accompanied by 5 allies 23390 | -5/Factory | Evolved 2 slots: Power x1, Utility x1 23580 | -5/Factory | Discovered new exit (range 17) 24252 | -5/Factory | Assimilating Sage 6a into Collective. 24255 | -5/Factory | Assimilating Sage 6b into Collective. 24329 | -5/Factory | Discovered new exit (range 17) 24379 | -5/Factory | Lost 5 allies 24516 | -5/Factory | Assimilating Informer 6a into Collective. 24530 | -5/Factory | Assimilating Technician 6a into Collective. 24574 | -5/Factory | Assimilating Sage 6c into Collective. 24717 | -5/Factory | Spotted B-75 Beast 24727 | -5/Factory | Assimilating Beast 6a into Collective. 24822 | -5/Factory | Identified exit to Garrison 24855 | -5/Factory | Entered Garrison 24855 | -5/Garrison | Accompanied by 4 allies 24885 | -5/Garrison | Triggered checkpoint 24912 | -5/Garrison | Garrison Relay disabled 24960 | -5/Garrison | Rescued a captive Derelict 24960 | -5/Garrison | Rescued a captive Derelict 24995 | -5/Garrison | Triggered checkpoint 25155 | -5/Garrison | Triggered checkpoint 25178 | -5/Garrison | Garrison Relay disabled 25215 | -5/Garrison | Triggered checkpoint 25215 | -5/Garrison | Discovered new exit (range 16) 25291 | -5/Garrison | Triggered checkpoint 25298 | -5/Garrison | Assimilating Slayer 6a into Collective. 25335 | -5/Garrison | Triggered checkpoint 25377 | -5/Garrison | Assimilating Carver 6a into Collective. 25405 | -5/Garrison | Lost 3 allies 25430 | -5/Garrison | Discovered new exit (range 15) 25436 | -5/Garrison | Assimilating Veteran 6a into Collective. 25444 | -5/Garrison | Assimilating Soldier 6a into Collective. 25527 | -5/Garrison | Triggered checkpoint 25544 | -5/Garrison | Garrison Relay disabled 25618 | -5/Garrison | Garrison Relay disabled 25638 | -5/Garrison | Found embedded Infiltrators 25724 | -5/Garrison | Assimilating Sentinel 6g into Collective. 25900 | -5/Garrison | Discovered new exit (range 15) 26005 | -5/Garrison | Expanded RIF knowledge: Robot Detection 26072 | -5/Garrison | Entered Factory 26072 | -5/Factory | Accompanied by 8 allies 26586 | -5/Factory | Fabricated M-28 Smith (x1) 26667 | -5/Factory | P-70 Sage assimilated allied 7Q-P4G(x) 26760 | -5/Factory | Identified exit to Garrison 26823 | -5/Factory | Entered Garrison 26823 | -5/Garrison | Accompanied by 10 allies 26847 | -5/Garrison | Found embedded Infiltrators 26851 | -5/Garrison | Triggered checkpoint 26872 | -5/Garrison | Garrison Relay disabled 26941 | -5/Garrison | Spotted Striker 26941 | -5/Garrison | Spotted Striker 26974 | -5/Garrison | Assimilating Striker into Collective. 26989 | -5/Garrison | Allies destroyed Striker 27065 | -5/Garrison | P-70 Sage assimilated allied Sentinel 6h 27078 | -5/Garrison | Lost 9 allies 27107 | -5/Garrison | Triggered checkpoint 27125 | -5/Garrison | Triggered checkpoint 27144 | -5/Garrison | Rescued a captive Derelict 27145 | -5/Garrison | Rescued a captive Derelict 27295 | -5/Garrison | Discovered new exit (range 14) 27648 | -5/Garrison | Garrison Relay disabled 27684 | -5/Garrison | Expanded RIF knowledge: Alert ID Control 27760 | -5/Garrison | Discovered new exit (range 11) 27961 | -5/Garrison | Triggered checkpoint 27991 | -5/Garrison | Garrison Relay disabled 28039 | -5/Garrison | Discovered new exit (range 8) 28057 | -5/Garrison | Spotted B-86 Titan 28063 | -5/Garrison | Spotted B-75 Beast 28072 | -5/Garrison | Rewired B-90 Cyclops 28074 | -5/Garrison | Rewired B-75 Beast 28079 | -5/Garrison | Allies destroyed B-86 Titan 28086 | -5/Garrison | Allies destroyed B-75 Beast 28180 | -5/Garrison | Entered Factory 28180 | -4/Factory | Accompanied by 13 allies 28180 | -4/Factory | Evolved 2 slots: Power x1, Utility x1 28282 | -4/Factory | Assimilating Eye 7a into Collective. 28314 | -4/Factory | Unchained authorized (6S-H0T) 28521 | -4/Factory | Assimilating Warrior 7a into Collective. 28526 | -4/Factory | Lost 3 allies 28527 | -4/Factory | Assimilating Veteran 7a into Collective. 28878 | -4/Factory | Lost 3 allies 28930 | -4/Factory | First assault squad dispatched 29004 | -4/Factory | Assimilating Veteran 7b into Collective. 29030 | -4/Factory | Spotted B-86 Titan 29050 | -4/Factory | Allies destroyed B-86 Titan 29057 | -4/Factory | P-70 Sage assimilated allied Sentinel 6l 29086 | -4/Factory | Lost 4 parts (1p2n1u) 29092 | -4/Factory | Lost 15 allies 29193 | -4/Factory | Lost 5 allies 29198 | -4/Factory | Identified exit to Garrison 29198 | -4/Factory | Entered Garrison 29198 | -4/Garrison | Accompanied by 4 allies 29219 | -4/Garrison | Assimilating Sentinel 7e into Collective. 29279 | -4/Garrison | Triggered checkpoint 29295 | -4/Garrison | Allies destroyed B-86 Titan 29320 | -4/Garrison | Lost 3 allies 29346 | -4/Garrison | Triggered checkpoint 29356 | -4/Garrison | Assimilating Virus 7a into Collective. 29370 | -4/Garrison | Garrison Relay disabled 29540 | -4/Garrison | Triggered checkpoint 29540 | -4/Garrison | Triggered checkpoint 29545 | -4/Garrison | Triggered checkpoint 29592 | -4/Garrison | Assimilating Veteran 7e into Collective. 29644 | -4/Garrison | Assimilating Sentinel 7f into Collective. 29740 | -4/Garrison | Triggered checkpoint 29813 | -4/Garrison | Garrison Relay disabled 29904 | -4/Garrison | Discovered new exit (range 12) 29933 | -4/Garrison | Learned Research security intel 30113 | -4/Garrison | Assimilating Master 7a into Collective. 30138 | -4/Garrison | Triggered checkpoint 30141 | -4/Garrison | Assimilating Sentinel 7g into Collective. 30145 | -4/Garrison | Found embedded Infiltrators 30199 | -4/Garrison | Garrison Relay disabled 30263 | -4/Garrison | Discovered new exit (range 12) 30288 | -4/Garrison | Expanded RIF knowledge: Program Shield 30466 | -4/Garrison | Triggered checkpoint 30490 | -4/Garrison | Garrison Relay disabled 30545 | -4/Garrison | Discovered new exit (range 18) 30604 | -4/Garrison | Discovered new exit (range 64) 30604 | -4/Garrison | Discovered new exit (range 16) 30604 | -4/Garrison | Discovered new exit (range 66) 30644 | -4/Garrison | Spotted Striker 30665 | -4/Garrison | Assimilating Striker into Collective. 30675 | -4/Garrison | Rewired Striker 30813 | -4/Garrison | Lost 3 allies 31065 | -4/Garrison | Assimilating Sage 7a into Collective. 31377 | -4/Garrison | Entered Research 31377 | -3/Research | Accompanied by 6 allies 31377 | -3/Research | Evolved 2 slots: Propulsion x1, Utility x1 31554 | -3/Research | Assimilating Rainmaker 8a into Collective. 31569 | -3/Research | Unchained authorized (6S-H0T) 31681 | -3/Research | Discovered new exit (range 4) 31846 | -3/Research | Lost 6 allies 32205 | -3/Research | Discovered new exit (range 22) 32272 | -3/Research | Assimilating Warden 8d into Collective. 32392 | -3/Research | Assimilating Assassin 8a into Collective. 32410 | -3/Research | Assimilating Master 8a into Collective. 32416 | -3/Research | Assimilating Master 8b into Collective. 32432 | -3/Research | Lost 3 allies 32515 | -3/Research | Allies destroyed B-86 Titan 32521 | -3/Research | Identified exit to Garrison 32531 | -3/Research | Entered Garrison 32531 | -3/Garrison | Accompanied by 2 allies 32551 | -3/Garrison | Triggered checkpoint 32631 | -3/Garrison | Assimilating Champion 8a into Collective. 32639 | -3/Garrison | Garrison Relay disabled 32673 | -3/Garrison | Triggered checkpoint 32709 | -3/Garrison | Spotted B-86 Titan 32709 | -3/Garrison | Spotted B-86 Titan 32728 | -3/Garrison | Allies destroyed B-86 Titan 32733 | -3/Garrison | Assimilating Titan 8a into Collective. 32748 | -3/Garrison | Assimilating Plague 8a into Collective. 32774 | -3/Garrison | Lost 5 allies 32778 | -3/Garrison | Lost 3 parts (2n1u) 33014 | -3/Garrison | Spotted B-86 Titan 33090 | -3/Garrison | Assimilating Titan 8b into Collective. 33172 | -3/Garrison | Assimilating Assassin 8b into Collective. 33175 | -3/Garrison | Assimilating Assassin 8c into Collective. 33283 | -3/Garrison | Triggered checkpoint 33290 | -3/Garrison | Assimilating Veteran 8b into Collective. 33313 | -3/Garrison | Triggered checkpoint 33447 | -3/Garrison | Triggered checkpoint 33457 | -3/Garrison | Assimilating Warden 8e into Collective. 33471 | -3/Garrison | Rescued a captive Derelict 33474 | -3/Garrison | Rescued a captive Derelict 33494 | -3/Garrison | Garrison Relay disabled 33581 | -3/Garrison | Discovered new exit (range 8) 33662 | -3/Garrison | Spotted B-86 Titan 33669 | -3/Garrison | Assimilating Titan 8c into Collective. 33844 | -3/Garrison | Discovered new exit (range 15) 33861 | -3/Garrison | Triggered checkpoint 33863 | -3/Garrison | P-80 Master assimilated allied 8I-RBU(l) 33909 | -3/Garrison | Garrison Relay disabled 33962 | -3/Garrison | System corruption reached 10% 33962 | -3/Garrison | Garrison Relay disabled 33962 | -3/Garrison | Garrison Relay disabled 33965 | -3/Garrison | Garrison Relay disabled 33973 | -3/Garrison | Garrison Relay disabled 34155 | -3/Garrison | Triggered checkpoint 34393 | -3/Garrison | Discovered new exit (range 10) 34402 | -3/Garrison | Triggered checkpoint 34430 | -3/Garrison | Garrison Relay disabled 34510 | -3/Garrison | Spotted B-86 Titan 34518 | -3/Garrison | Rewired B-90 Cyclops 34519 | -3/Garrison | Rewired B-90 Cyclops 34521 | -3/Garrison | Spotted B-90 Cyclops 34524 | -3/Garrison | Assimilated Cyclops 8c with formatsys_high 34524 | -3/Garrison | Assimilated Titan 8d with formatsys_high 34721 | -3/Garrison | Entered Research 34721 | -2/Research | Accompanied by 7 allies 34721 | -2/Research | Evolved 2 slots: Power x1, Utility x1 34874 | -2/Research | Unchained authorized (6S-H0T) 34925 | -2/Research | Allies destroyed Borg Titan 8c 35100 | -2/Research | Assimilating Engineer 9a into Collective. 35104 | -2/Research | Assimilating Engineer 9b into Collective. 35147 | -2/Research | Lost 3 allies 35170 | -2/Research | Assimilating Warden 9a into Collective. 35260 | -2/Research | Lost 4 allies 35333 | -2/Research | Assimilating Enforcer 9a into Collective. 35418 | -2/Research | Lost 3 allies 35429 | -2/Research | Assimilating Warden 9d into Collective. 35585 | -2/Research | Assimilating Terminator 9a into Collective. 35592 | -2/Research | Assimilating Terminator 9b into Collective. 35736 | -2/Research | Assimilating Enforcer 9b into Collective. 35788 | -2/Research | Found Centrium Heavy Armor Plating 35796 | -2/Research | Discovered new exit (range 18) 35809 | -2/Research | Found Centrium Heavy Armor Plating 35823 | -2/Research | Discovered new exit (range 10) 35849 | -2/Research | Assimilating Artificer 9a into Collective. 35914 | -2/Research | Lost 3 allies 35953 | -2/Research | Assimilating Enforcer 9c into Collective. 36110 | -2/Research | Assimilating Master 9a into Collective. 36376 | -2/Research | Entered Access 36376 | -1/Access | Accompanied by 2 allies 36376 | -1/Access | Evolved 2 slots: Propulsion x1, Utility x1 36377 | -1/Access | System corruption reached 10% 36472 | -1/Access | Garrison activated, responded to threat 36754 | -1/Access | Assimilating Engineer 10a into Collective. 36803 | -1/Access | Assimilating Enforcer 10b into Collective. 36971 | -1/Access | Assimilating Master 10a into Collective. 37005 | -1/Access | Lost 3 allies 37132 | -1/Access | Assimilating Warden 10b into Collective. 37185 | -1/Access | Assimilating Warden 10c into Collective. 37311 | -1/Access | Assimilating Warden 10d into Collective. 37441 | -1/Access | Assimilating Master 10b into Collective. 37445 | -1/Access | Assimilating Master 10c into Collective. 37499 | -1/Access | Spotted B-99 Colossus 37507 | -1/Access | Spotted B-99 Colossus 37532 | -1/Access | Discovered new exit (range 5) 37805 | *** | Escaped! Last Messages --------------- 37537_ B-99 Colossus IFF system glitched. 37539_ Borg Master 10b fails to hack B-99 Colossus. 37541_ Borg Master 10b knocked back. 37541_ Slug penetrates Wall. 37541_ Slug penetrates Borg Master 10b. 37541_ Borg Master 10b destroyed. 37541_ Core damaged by loss of Borg Master 10b (-16). 37551_ System corrupted: Substantial component data lost. 37551_ Slug penetrates Sealed Heavy Doors. 37585_ System corrupted: Matter fused (-6). 37601_ System corrupted: Matter fused (-10). 37630_ System corrupted: Matter fused (-9). 37652_ System corrupted: Component data lost. 37677_ System corrupted: Matter fused (-8). 37708_ 18AVYMB CIBJXVMTBVBGAGTNNQOAL L 37732_ System corrupted: Energy discharge (-147). 37750_ >X L C PIZ VL<#ADU#UKHQIE 8EK4# 37767_ System corrupted: Component data lost. 37796_ Slug penetrates Sealed Heavy Doors. 37802_ System corrupted: Heat flow error (+130). Map ----- +----------------------------------------------------+ | ##???????????# # #?????????????????????? | | ##??????????# # #?????????????????????? | | #??????????# % # #?????????????????????? | | #??????????## % # #?????????????????????? | | ######## % # #?????????????????????? | | ## ### # !! %# #?????????????????????? | | ###????# # %!! +% #?????????????????????? | | #??????# # % %# % #?????????????????????? | | #?###### # ! % # #?????????????????????? | | ### # ##########% ####??????????????????? | | # #?????# #??????????????????? | | += [ #?????# #??????????????????? | | ###= ^# | ! #?????# #??????????????????? | | ??## ## = ]#?????# %#??????????????????? | | #### ## #?????# % #??????????????????? | | # ## #?????# #??????????????????? | | # ## #?????# % #??????????????????? | | # ########?????#""""" """"#??????????????????? | | # #???## ##?????????" "??????????????????????? | | # #????##"##???????"" "??????????????????????? | | # #######" ###?#"""" """"#??????????????????? | | # ## #?# #??????????????????? | | * # ## #?# """" " #??????????????????? | | + ## " #?# ?" " #??????????????????? | | # ## """ #?#??" "" " #??????????????????? | | # ## """ #????" "@ " #??????????????????? | | #### ## " #????" " #??????????????????? | | ### # #????"""""" #??????????????????? | | # #????????? #??????????????????? | | + " #????????? #??????????????????? | | ### # """ #?""""""""""""??????????????????? | | ??## ## """ #?#"" #??????????????????? | | ???# ## " #?#"" #??????????????????? | | ???# ## #?#"" #??????????????????? | | ???# ## #?#T #??????????????????? | | ???# ## #?#"" #??????????????????? | | ??# ## #?#"" #??????????????????? | | # ##############"" ######?????????????? | | " =!=! #?????? | | # *% !%%=% g / ????? | | ???# ########/######################## #?????? | | ???# #?????? ?????????????????????????????????? | | ???# #?????? ?????????????????????????????????? | | ???# #????? ????????????????????????????????? | | #### #?????" ????????????????????????????????? | | #????""" #???????????????????????????????? | | #???? " #???????????????????????????????? | | #######??? #???????????????????????????????? | | ?????????? = #???????????????????????????????? | | ?????????#########???????????????????????????????? | +----------------------------------------------------+ Best States ------------- Heat Dissipation 83 Energy Generation 85 Energy Capacity 1240 Matter Stores 500 Matter Capacity 500 Sight Range 16 Terrain Scan Density 10 Jamming Range 14 Armor Coverage 1000 Resistance: KI 30 Evasion (%) 40 Targeting Accuracy 5 Recoil Reduction 4 Offensive Hacking 11 Defensive Hacking 14 Relay Coupler Types 6 Relay Coupler Value 272 Authchip Count 1 Item Schematics ----------------- None Robot Schematics ------------------ M-13 Machinist | -10/Materials | Hacked M-28 Smith | -8/Materials | Hacked Fabricated ------------ M-28 Smith | x1 | -5/Factory | Authchip Repaired ---------- Lgt. Treads | 12% | -10/Materials | Broken Powered Armor | 6% | -8/Materials Powered Armor | 63% | -8/Materials Shield Generator | 6% | -8/Materials Arm. Huge Wheel | 50% | -8/Materials Adv. Cooling System | 63% | -7/Factory Remote Datajack | 45% | -6/Factory Studied --------- Arm. Huge Wheel | -8/Materials | Hacked Minigun | -8/Materials | Hacked Imp. Grenade Launcher | -8/Materials | Hacked Nuclear Core | -8/Materials | Hacked Arm. Wheel | -6/Factory | Hacked Remote Datajack | -6/Factory | Hacked Hyb. Fission Core | -4/Factory | Hacked Alien Tech Used ----------------- None Achievements -------------- Art Critic Challenges ------------ None Game ------ Seed DynamicSegregatorSabre Manual? 0 Play Time 04:02:40 Cumulative 849.0 hours Start 2026.04.12 @ 16:11:41 End 2026.04.13 @ 10:07:29 Sessions 9 Manual Loads 0 Difficulty Rogue Special Mode None Game No. 422 Rogue 422 Adventurer 0 Explorer 0 Win Type 0 Total 73 Types 47/5/7/4/1/1/3/3/1/1 Lore% 92 Gallery% 83 Achievement% 73 Wizard Run 0 Options --------- Layout 0 ASCII 0 Keyboard 1 Movement Numpad Keybinds 0 Fullscreen 2 Font 18/SmallcapsGlow Map View 76x50 Zoom Use 0% Tactical HUD 1 Map Filters NONE Filters NONE Steam 1 RUN: 16644861-5886-4941-b9b8-8103228c6033